{"text_format":"3","workbook":"xlsx","n_sheets":2,"sheets":["COVER","S-MAGUBULUNDU"],"not_rendered":{"images":1,"external_links":1,"defined_names":1},"read":"whole","date_system":"1900"}

{"sheet":"COVER","index":0,"n_rows":46,"n_cols":4,"rows_kept":46,"merged":[[0,0,0,3],[1,0,1,3],[11,0,11,3],[12,0,12,3],[14,0,14,3],[15,0,15,3],[17,0,17,3],[18,0,18,3],[19,0,19,1],[19,2,19,3],[20,0,20,1],[20,2,20,3],[21,0,21,1],[21,2,21,3],[22,0,22,1],[22,2,22,3],[23,0,23,1],[23,2,23,3],[24,2,24,3],[25,2,25,3],[26,0,26,1],[26,2,26,3],[27,0,27,1],[27,2,27,3],[31,2,31,3],[32,2,32,3],[33,2,33,3],[34,2,34,3],[35,2,35,3],[38,0,38,3]]}
["PROVINCIAL ADMINISTRATION OF KWAZULU-NATAL"]
["DEPARTMENT OF PUBLIC WORKS"]
{"$rows_empty":9}
["BILLS OF QUANTITIES"]
[{"$f":"+'[1]Cover Page-Section 1 of 2'!A12:D12","v":"with GCC for Construction Works - Second Edition 2010"}]
[]
["CONTRACTUAL SECTION"]
["ONE VOLUME APPROACH"]
[]
[{"$f":"+'[1]Master Data'!E18","v":"PHASE 14: STORM DAMAGED PROGRAMME: REPAIRS AND RENOVATIONS TO STORM DAMAGED SCHOOLS THROUGHOUT THE PROVINCE OF KWAZULU-NATAL: NORTH COAST REGION: CLUSTER 2: MAGUBULUNDU JUNIOR SECONDARY SCHOOL. OPEN BID              "}]
[]
[{"$f":"+'[1]Cover Page-Section 1 of 2'!A20","v":"Engineer/Principal Agent"},null,{"$f":"+'[1]Cover Page-Section 1 of 2'!C20:D20","v":"Electrical Engineers"}]
[{"$f":"+'[1]Cover Page-Section 1 of 2'!A21:B21","v":"Naidu Consulting (Pty) Ltd        "},null,{"$f":"+'[1]Cover Page-Section 1 of 2'!C21:D21","v":"DNA Engineers & Project Managers"}]
[{"$f":"+'[1]Cover Page-Section 1 of 2'!A22:B22","v":"P.O Box 2796"},null,{"$f":"+'[1]Cover Page-Section 1 of 2'!C22:D22","v":"641 Peter Mokaba Rd, Morningside"}]
[{"$f":"+'[1]Cover Page-Section 1 of 2'!A23:B23","v":"Westville"},null,"Morningside"]
[{"$f":"+'[1]Cover Page-Section 1 of 2'!A24:B24","v":"Durban"},null,{"$f":"+'[1]Cover Page-Section 1 of 2'!C24:D24","v":"Durban"}]
[{"$f":"+'[1]Cover Page-Section 1 of 2'!A25:B25","v":3635},null,{"$f":"+'[1]Cover Page-Section 1 of 2'!C25:D25","v":4091}]
[{"$f":"+'[1]Cover Page-Section 1 of 2'!A26","v":"031 - 265 6007 - Tel Number"},null,{"$f":"+'[1]Cover Page-Section 1 of 2'!C26:D26","v":"031 - 207 1576 - Tel Number"}]
[{"$f":"+'[1]Cover Page-Section 1 of 2'!A27","v":"031 - 265 6011 - Fax Number"},null,{"$f":"+'[1]Cover Page-Section 1 of 2'!C27:D27","v":"086 - 670 8703 - Fax Number"}]
[{"$f":"+'[1]Cover Page-Section 1 of 2'!A28:B28","v":"Sherwyn.Bhana@naiduconsulting.com"},null,{"$f":"+'[1]Cover Page-Section 1 of 2'!C28:D28","v":"info@dnaengineers.co.za "}]
[]
[]
[{"$f":"+'[1]Cover Page-Section 1 of 2'!A30","v":"Employer:"},null,{"$f":"+'[1]Cover Page-Section 1 of 2'!C30:D30","v":"Region:"}]
[{"$f":"+'[1]Cover Page-Section 1 of 2'!A31","v":"Head: Public Works"},null,{"$f":"+'[1]Cover Page-Section 1 of 2'!C31:D31","v":"Head Public Works: Operations"}]
[{"$f":"+'[1]Cover Page-Section 1 of 2'!A32","v":"KZN Department of Public Works"},null,{"$f":"+'[1]Cover Page-Section 1 of 2'!C32:D32","v":"KZN Department of Public Works"}]
[{"$f":"+'[1]Cover Page-Section 1 of 2'!A33","v":"Private Bag X 9041"},null,{"$f":"+'[1]Cover Page-Section 1 of 2'!C33:D33","v":"Private Bag X 9041"}]
[{"$f":"+'[1]Cover Page-Section 1 of 2'!A34","v":"PIETERMARITZBURG"},null,{"$f":"+'[1]Cover Page-Section 1 of 2'!C34:D34","v":"Pietermaritzburg"}]
[{"$f":"+'[1]Cover Page-Section 1 of 2'!A35","v":3200},null,{"$f":"+'[1]Cover Page-Section 1 of 2'!C35:D35","v":"3200"}]
[{"$f":"+'[1]Cover Page-Section 1 of 2'!A36","v":"Tel Number:     033 - 355 5569"},null,{"$f":"+'[1]Cover Page 2'!C32","v":"Tel Number:"},{"$f":"+'[1]Cover Page-Section 1 of 2'!D36","v":"033 - 355 5569"}]
[{"$f":"+'[1]Cover Page-Section 1 of 2'!A37","v":"Fax Number:    N/A"},null,{"$f":"+'[1]Cover Page 2'!C33","v":"Fax Number:"},{"$f":"+'[1]Cover Page-Section 1 of 2'!D37","v":"N/A"}]
[]
[{"$f":"+'[1]Cover Page-Section 1 of 2'!A39","v":"Tender Number:      ZNTU03695W"}," ","Project Code:","063404"]
[{"$f":"+'[1]Cover Page-Section 1 of 2'!A40","v":"CIDB Grading:        5GB or higher"}," ",{"$f":"+'[1]Cover Page-Section 1 of 2'!C40","v":"Document Date:"},"2023-09-25"]
[{"$f":"+'[1]Cover Page-Section 1 of 2'!A41","v":"ECDP Number:       N/A"},null,"Contract Period:","10 Calendar Months"]
["Advertisement Date: 25 August 2023"]
["Contracting Party: "]
[{"$f":"+'[1]Cover Page-Section 1 of 2'!A44:D44","v":"CIDB Registration number:"}]
[{"$f":"+'[1]Cover Page-Section 1 of 2'!A45:D45","v":"Central Suppliers Database Registration Number: "}]

{"sheet":"S-MAGUBULUNDU","index":1,"n_rows":1945,"n_cols":9,"rows_kept":1945,"merged":[[0,0,1,8],[2,0,2,2],[2,3,2,4],[2,5,2,6],[2,7,2,8],[3,0,4,2],[3,3,4,4],[3,5,4,6],[3,7,4,8],[5,0,5,8]]}
["PHASE 14: STORM DAMAGED PROGRAMME: REPAIRS AND RENOVATIONS TO STORM DAMAGED SCHOOLS THROUGHOUT THE PROVINCE OF KWAZULU-NATAL: NORTH COAST REGION: CLUSTER 2: MAGUBULUNDU JUNIOR SECONDARY SCHOOL. OPEN BID    "]
[]
["SCHOOL NAME",null,null,"MAGUBULUNDU JUNIOR SECONDARY SCHOOL",null,"WIMS",null,"CONTRACT TYPE"]
["BIDDING ENTITY:",{"$nulls":4},"063404",null,"OPEN BID"]
[]
["BIDDERS TO NOTE THAT ONLY THE RATE COLUMN TO BE FILLED "]
[]
["SECTION","BILL","PAGE NO","ITEM NO","DESCRIPTION","UNIT","QUANTITY","RATE","AMOUNT"]
[1,1,1,null,"SECTION No. 1","H1",0]
[]
[1,1,1,null,"BILL No. 1 : PRELIMINARIES AND GENERAL","H1",0]
[]
[1,1,1,null,"(Applicable to all sections of the Works)",null,0]
[]
[1,1,1,null,"(CPAP WORK GROUP NO. 190 UNLESS OTHERWISE STATED)","H2",0]
[]
[1,1,1,null,"(Applicable to all sections of the Works)",null,0]
[]
[1,1,1,null,"NOTES:","H2",0]
[]
[1,1,1,null,"(i) The agreement is to be the General Conditions of Contract for Works of Civil Engineering Construction (2010) (Second Edition) , publishedby the S. A. Institution Of Civil Engineering.",null,0]
[]
[1,1,1,null,"(ii) The Preliminaries are to be the Construction and management requirements for works contracts - Part 1: General engineering and construction works (SANS 1921-1: 2004 Edition 1) prepared by Standards South Africa and shall be deemed to be incorporated herein.",null,0]
[]
[1,1,1,null,"(iii) Tenderers are referred to the above mentioned documents for the full intent and meaning of each clause thereof (hereinafter referred to by heading and clause number only) for which such allowance must be made as may be considered necessary.",null,0]
[]
[1,1,1,null,"(iv)Where standard clauses or alternatives are not entirely applicable to this contract such modifications, corrections or supplements as will apply are given under each relevant clause heading.",null,0]
[]
[1,1,1,null,"(v) Where any item is not relevant to this specific contract such item is marked N/A (signifying \"not  applicable\").",null,0]
[]
[1,1,2,null,"(vi) Adjustment of the preliminaries:  each item priced, is to be allocated to one or more of  thethree categories, where \"F\" denotes a fixed amount  (amount not to be varied), \"V\" denotes an amount  variable in proportion to value and \"T\" denotes an  amount in proportion to time.",null,0]
[]
[1,1,2,null,"(vii) Time (T) related Preliminaries will only be adjusted for omissions or additions, issued by the Employer, or delays caused by the Employer, for which variation and extension of time has been granted. See Contract Data.",null,0]
[]
[1,1,2,null,"SECTION A: GENERAL CONDITIONS OF CONTRACT","H2",0]
[]
[1,1,2,1,"A1. General (Clause 1)  F:................... V:.................... T:....................","Item",1,null,{"$f":"G37*H37","v":{"v":0,"d":"0.00"}}]
[{"$nulls":4},""]
[1,1,2,2,"A2.Basis of the Contract (Clause 2)  F:................... V:.................... T:....................","Item",0]
[{"$nulls":4},""]
[1,1,2,3,"A3.Engineer (clause 3) F:................... V:.................... T:....................","Item",0]
[{"$nulls":4},""]
[1,1,2,4,"A4.Contractor's General Obligation (clause 4) F:................... V:.................... T:....................","Item",0]
[{"$nulls":4},""]
[1,1,2,5,"A5.Time and Related Matters (clause 5) - As referred to in the Contract Data under Special Time and Related Matters (clause 5) - As referred to in the Contract Data under Special Condition of Contract. The Contract Period shall be deemed to include all Non - Working Days, Special Non - Working Days and the year-end Builders Annual Industry Holiday Periods. F:................... V:.................... T:...................."]
[{"$nulls":4},""]
[1,1,3,6,"A6.Payment and Related Matters (clause 6) F:................... V:.................... T:....................","Item",0]
[{"$nulls":4},""]
[1,1,3,7,"A7. Quality and Related Matters (clause 7) F:................... V:.................... T:....................","Item",0]
[{"$nulls":4},""]
[1,1,3,8,"A8.Risk and Related Matters (clause 8) F:................... V:.................... T:....................","Item",0]
[{"$nulls":4},""]
[1,1,3,9,"A9.Termination of Contract (clause 9) F:................... V:.................... T:....................","Item",0]
[{"$nulls":4},""]
[1,1,3,10,"A10.Claims and Disputes (clause 10) F:................... V:.................... T:....................","Item",0]
[]
[1,1,3,null,"SECTION B: SANS 1921-1-2004 (Edition 1): CONSTRUCTION AND MANAGEMENT FOR THE WORKS: PART 1  Refer to the SCOPE OF WORK for detail requirements","H2",0]
[]
[1,1,3,11,"B1.Scope  F................. V:.................... T:....................","Item",0]
[{"$nulls":4},""]
[1,1,3,12,"B2.Normative references  F:................... V:.................... T:....................","Item",0]
[{"$nulls":4},""]
[1,1,3,13,"B3.Definitions  F:................... V:.................... T:....................","Item",0]
[{"$nulls":4},""]
[1,1,4,14,"B4.Requirements for construction and management  F:................... V:.................... T:....................","Item",0]
[{"$nulls":4},""]
[1,1,4,15,"B4.1General F:................... V:.................... T:....................","Item",0]
[{"$nulls":4},""]
[1,1,4,16,"B4.2Responsibilities for design and construction  F:................... V:.................... T:....................","Item",0]
[{"$nulls":4},""]
[1,1,4,17,"B4.3Planning, programme and method statements  F:................... V:.................... T:....................","Item",0]
[{"$nulls":4},""]
[1,1,4,18,"B4.4Quality assurance  F:................... V:.................... T:....................","Item",0]
[{"$nulls":4},""]
[1,1,4,19,"B4.5Setting Out  F:................... V:.................... T:....................","Item",0]
[{"$nulls":4},""]
[1,1,4,20,"B4.6Management and disposal of Water  F:................... V:.................... T:....................","Item",0]
[{"$nulls":4},""]
[1,1,4,21,"B4.7Blasting  F:................... V:.................... T:....................","Item",0]
[{"$nulls":4},""]
[1,1,4,22,"B4.8Works adjacent to services and structures  F:................... V:.................... T:....................","Item",0]
[{"$nulls":4},""]
[1,1,4,23,"B4.9Management of the Works and site  F:................... V:.................... T:....................","Item",0]
[{"$nulls":4},""]
[1,1,4,24,"B4.10Earthworks  F:................... V:.................... T:....................","Item",0]
[{"$nulls":4},""]
[1,1,5,25,"B4.11Testing  F:................... V:.................... T:....................","Item",0]
[{"$nulls":4},""]
[1,1,5,26,"B4.12Materials, samples and fabrication drawings  F:................... V:.................... T:....................","Item",0]
[{"$nulls":4},""]
[1,1,5,27,"B4.13Equipment  F:................... V:.................... T:....................","Item",0]
[{"$nulls":4},""]
[1,1,5,28,"B4.14Site Establishment  F:................... V:.................... T:....................","Item",0]
[{"$nulls":4},""]
[1,1,5,29,"B4.15Survey Control  F:................... V:.................... T:....................","Item",0]
[{"$nulls":4},""]
[1,1,5,30,"B4.16Temporary Works  F:................... V:.................... T:....................","Item",0]
[{"$nulls":4},""]
[1,1,5,31,"B4.17Existing Services  F:................... V:.................... T:....................","Item",0]
[{"$nulls":4},""]
[1,1,5,32,"B4.18Health and Safety  F:................... V:.................... T:....................","Item",0]
[{"$nulls":4},""]
[1,1,5,33,"B4.19Environmental Requirements  F:................... V:.................... T:....................","Item",0]
[{"$nulls":4},""]
[1,1,5,34,"B4.20Alterations, additions, extensions and modifications to existing works  F:................... V:.................... T:....................","Item",0]
[{"$nulls":4},""]
[1,1,6,35,"B4.21Inspection of adjoining structures, services, buildings and property  F:................... V:.................... T:....................","Item",0]
[{"$nulls":4},""]
[1,1,6,36,"B4.22Attendance on nominated and selected subcontractors  F:................... V:.................... T:....................","Item",0]
[]
[]
[1,1,6,null,"SECTION C: SCOPE OF WORK in accordance with SANS 10403","H2",0]
[]
[1,1,6,null,"'(The reference to Clauses refer to Table B.1 of SANS 1921-1:2004)",null,0]
[]
[1,1,6,37,"C1.Certification by recognised bodies - CLAUSE 4.4  F................. V:.................... T:....................","Item",0]
[{"$nulls":4},""]
[1,1,6,38,"C2.Agrément certificates - CLAUSE 4.5  F................. V:.................... T:....................","N/A",0]
[{"$nulls":4},""]
[1,1,6,39,"C3.Other services and facilities - CLAUSE 4.8  F................. V:.................... T:....................","Item",0]
[{"$nulls":4},""]
[1,1,6,40,"C4.Recording of weather - CLAUSE 5.2  F................. V:.................... T:....................","Item",0]
[{"$nulls":4},""]
[1,1,6,41,"C5.Management meetings - CLAUSE 5.3  F................. V:.................... T:....................","Item",0]
[{"$nulls":4},""]
[1,1,6,42,"C6.Daily records CLAUSE 5.6  F................. V:.................... T:....................","Item",0]
[{"$nulls":4},""]
[1,1,7,43,"C7.Bond and guarantees - CLAUSE 5.7  F................. V:.................... T:....................","Item",0]
[{"$nulls":4},""]
[1,1,7,44,"C8.Permits - CLAUSE 5.9  F................. V:.................... T:....................","Item",0]
[{"$nulls":4},""]
[1,1,7,45,"C9.Proof of compliance with the law- CLAUSE 5.10  F................. V:.................... T:....................","Item",0]
[]
[]
[1,1,7,null,"SECTION D: SPECIFICATION DATA ASSOCIATED WITH SANS 1921-1:2004 (Table A.1)","H2",0]
[]
[1,1,7,46,"D1.Requirements for drawings, information and calculations for which the contractor is responsible CLAUSE 4.1.7  F................. V:.................... T:....................","Item",0]
[]
[1,1,7,47,"D2.The responsibility strategy assigned to the contractor for the works  CLAUSE 4.2.1  F................. V:.................... T:....................","Item",0]
[]
[1,1,7,48,"D3.The planning, programme and method statements - CLAUSE 4.3  F................. V:.................... T:....................","Item",0]
[]
[1,1,7,49,"D4.Samples of materials, workmanship and finishes  - CLAUSE 4.12.1  F................. V:.................... T:....................","Item",0]
[]
[1,1,8,50,"D5.Fabrication drawings that the contractor is to provide and deliver to the employer  - CLAUSE  4.12.2  F................. V:.................... T:....................","Item",0]
[]
[1,1,8,51,"D6.Office for the foreman CLAUSE 4.14.3  F................. V:.................... T:....................","Item",0]
[{"$nulls":4},""]
[1,1,8,52,"D7.Telephone -  CLAUSE 4.14.3  F................. V:.................... T:....................","Item",0]
[{"$nulls":4},""]
[1,1,8,53,"D8.Office for inspector of works  -  CLAUSE 4.14.3  F................. V:.................... T:....................","Item",0]
[]
[1,1,8,54,"D9.Telephone in office for inspector of works  -  CLAUSE 4.14.3  F................. V:.................... T:....................","Item",0]
[]
[1,1,8,55,"D10.Sheds  -  CLAUSE 4.14.3  F................. V:.................... T:....................","Item",0]
[]
[1,1,8,56,"D11.Provision and erection of signboards -  CLAUSE 4.14.6  F................. V:.................... T:....................","Item",0]
[]
[1,1,8,57,"D12.Termination, diversion or maintenance of existing services - CLAUSE4.17.1  F................. V:.................... T:....................","Item",0]
[]
[1,1,8,58,"D13.Services which are known to exist - CLAUSE 4.17.3F................. V:.................... T:....................","Item",0]
[]
[1,1,9,59,"D14.Detection apparatus - CLAUSE 4.17.4  F................. V:.................... T:....................","Item",0]
[]
[1,1,9,60,"D15.Additional health and safety requirements - CLAUSE 4.18  F................. V:.................... T:....................","Item",0]
[]
[1,1,10,null,"SECTION E: SPECIFIC PRELIMINARIES","H2",0]
[]
[1,1,10,null,"Section E contains Specific Preliminary items which apply to this contract except where \"N/A\" (Not Applicable) appears against the item","H3",0]
[]
[1,1,10,null,"E1. PROPRIETARY BRANDED PRODUCTS","H2",0]
[]
[1,1,10,61,"The contractor shall take delivery of, handle, store, use apply and/or fix all proprietary branded products in strict accordance with the manufacturers' instruction after consultation with the manufacturer's authorised representative.  F:......................... V:........................ T:.........................","Item",0]
[]
[1,1,10,null,"E2. OVERTIME","H2",0]
[]
[1,1,10,62,"Should overtime be required to be worked for any reasonwhatsoever, the costs of such overtime are to be borne by the Contractor unless the Engineer/Principal Agent has specifically authorised in writing, prior to the execution thereof, that costs for such overtime are to be borne by the Employer.F:......................... V:........................ T:........................","Item",0]
[]
[1,1,10,null,"E3. AS BUILT DRAWINGS","H2",0]
[]
[1,1,10,63,"The position of construction breaks and the extent ofindividual concrete pours are to be recorded by the Contractor on the Structural Engineer's drawings and areto be submitted to the Engineer/Principal Agent and the Structural Engineer for their records.F:......................... V:........................ T:.........................","Item",0]
[]
[1,1,11,null,"E4. SITE INSTRUCTIONS","H2",0]
[]
[1,1,11,64,"Site Instructions issued on site are to be recorded intriplicate in a Site Instruction book which is to be maintained on site by the Contractor.F:............................. V:............................ T:.................","Item",0]
[]
[1,1,11,null,"E5. LABOUR RECORDS","H2",0]
[]
[1,1,11,65,"At the end of each week the Contractor shall provide the Engineer/Principal Agent with a written record, in schedule form, reflecting the number and description oftradesmen and labourers employed by him and all sub-contractors on the works each day.F:............................. V:...........................T:...................","Item",0]
[]
[1,1,11,null,"Note: In the event that the contractor fails to satisfy the requirements of this specification, the Employer (Head: Public Works) may apply any of the sanctions provided in the contract. Sanctions may include the application of a financial penalty of .04% of the Contract Sum per calendar day of which the requiredreport has not been submitted.",null,0]
[]
[1,1,11,null,"E6. PLANT RECORDS","H2",0]
[]
[1,1,11,66,"At the end of each week the Contractor shall providethe Engineer/Principal Agent with a written record, inschedule form, reflecting the number, type and capacityof all plant, excluding hand tools,  currently used on the works.F:......................... V:........................ T:.........................","Item",0]
[]
[1,1,12,null,"E7. CESSION OF MONIES","H2",0]
[]
[1,1,12,67,"The Contractor shall not cede nor assign his rights orclaims to any monies due or to become due under this contract.F:......................... V:........................ T:.........................","Item",0]
[]
[1,1,12,null,"E8. SECTIONAL COMPLETION","H2",0]
[]
[1,1,12,68,"When it is required that the contract be executedin sections or portions, the tenderer shall allow for all costs in this regard as no claim for additional costs will be entertained.F:......................... V:........................ T:.........................","Item",0]
[]
[1,1,13,null,"E9. LOCAL LABOUR","H2",0]
[]
[1,1,13,69,"It is a general requirement of this contract that persons normally resident in the locality of the works (Local Labour) or unemployed parents whose children attend this specific school, be given preference for employment on the contract. Provided, however, that should adequate and appropriate Labour not be available within the locality, others may be employed subject to satisfactory proof being provided that every reasonable endeavour has been made to employ Local Labour. The Contractor shall identify the local community leaders with the purpose of negotiating with them regarding the utilization of Local Labour in the construction process. In this regard, the Contractor shall furthermore give preference, wherever possible to the employment of single heads of households, women and youth. The Contractor shall, in general, maximize the involvement of the local community. All standard local labour employment forms (EPWP), local labour forms, together with the supporting documentation ie, Certified copies of ID Documents, Employment details, wage rates, proof of payments, period of employment and employment contracts, must be submitted with the monthly payment certificate to the Engineer.    F:......................... V:........................ T:.........................","Item",0]
[]
[1,1,13,null,"E10. IMPORT PERMITS AND DUTIES","H2",0]
[]
[1,1,13,70,"The responsibility for obtaining the necessary importpermits shall rest with the successful Tenderer. No foreign exchange will be arranged or provided by the Administration.Tenderers are to allow in their tenders and pay the ordinary levy imposed on imported items in terms ofitem 196.10 of Part 8 of Schedule No. 1 of the Customsand Excise Act, 1964 with effect from 1 October 1989.F:......................... V:........................ T:.........................","Item",0]
[]
[1,1,14,null,"E11. CONTRACT PRICE ADJUSTMENT PROVISIONS (CPAP)","H2",0]
[]
[1,1,14,71,"Notwithstanding anything to the contrary contained in theGCC for Construction Works 2010 2nd Edition, thisContract shall only when the Construction Period exceeds 6 months and the Contract sum exceeds R1,000,000,00  be subject to the Contract Price Adjustment Provisions Indices Application Manual for use with P0151 indices (CPAP) (Revised 1 January 2013) as published by Statistics South Africa. Tenderers are advised thatwith reference to Clause 3.4.6 of the Contract Price Adjustment Provisions (CPAP) Indices ApplicationsManual, the Head: Public Workswill not accept the submission by Tenderers of lists of  additional items.Where this contract is a Lump Sum contract,the contract will be subject to Contract Price Adjustment Provisions (CPAP) only where the contract period equalsor exceeds 6 calendar months. The applicable work group shall be WG 180 for domestic buildings or WG 181 for commercial and industrial buildings.F:......................... V:........................ T:.........................","Item",0]
[]
[]
[1,1,14,null,"E12. EPWP CONDITIONS AND SPECIFICATIONS","H2",0]
[]
[1,1,15,null,"12.1  EMPLOYMENT TARGETS ","H3",0]
[]
[1,1,15,72,"E12.1 a Employment TargetsThe contractor needs to provide a realistic estimate onthe number of jobs that the project has the potential tocreate throughout the project duration as the project will be implemented using labour intensive construction methods on elements where it is economical and feasible for this construction method.No of jobs to be created = ……. [Contractor to fill in an estimated number]F:......................... V:....................... T:......................","Item",0]
[]
[1,1,15,73,"E12.1 b Employment requirementsTenderers are advised that this contract will be subject tothe Expanded Public Works Program (EPWP) aimed at alleviating and reducing unemployment.Tenderers must allow for any costs for the employmentof unskilled labour as per the requirements of the EPWP program;1. 55% of unskilled labour to be women.2. 55% of unskilled labour to be youth aged between 18     and 35 years3. 2% of unskilled labour to be people living with disability 4. 100%  Unskilled labour utilised must reside withinthe boundaries of the Municipality Ward where this contract is executed, with preference to the local community closest or at the walking distance to the contract site. Wherever possible local skilled tradesmenare to be employed on this contract with the view to maximize utilization of local resources.(See E9) F:............................. V:............................ T:................","Item",0]
[]
[1,1,16,74,"E12.1 c Labour rate and payment intervalsThe contractor should ensure that labour rate paid to unskilled local labour is commensurate to the daily task.When determining the rate, consideration should be given to that EPWP beneficiaries are mostly bread winners in their families, as the program intends alleviating poverty. There should also be consideration that the labour rate promotes creation of expanded number of jobs created and person days of work.Contractors should make endeavours to ensure that labourers, particularly unskilled are remunerated on fortnight basis and prior notification be made should there be a shortfall on their wages.The labour rate for local unskilled shall also be determined in consideration of the location of the project, i.e. for projects implemented in urbanized municipalities will not be the same as that for rural municipalities.F:......................... V:........................ T:.......................","Item",0]
[]
[1,1,16,null,"12.2 LABOUR INTENSIVE CONSTRUCTION METHOD ","H3",0]
[]
[1,1,16,75,"E12.2 a Labour Intensive Construction (LIC) methodOn site there must a person(s) having competency inmanaging and implementing LIC methods. *Foreman @ NQF Level 4 the Unit Standard on   Implementing LIC methods on site.*Site Agent/ Managers @ NQF level  5 the Unit Standard on Manage Labour-Intensive Skills Programme both  must be CETA accreditedF:............................. V:............................ T:................","N/A",0]
[]
[1,1,17,76,"E12.2 b Labour Intensive Construction MethodThose parts of the contract to be constructed using Labour Intensive methods will be marked in the BoQ with letter LI (indicating Labour Intensive) against every item so designated. Such works will only be constructed using method so indicated. Reference to be made to Guidelines for the implementationof Labour Intensive Infrastructure projects under EPWP. \"Scope of Work in Respect of Work Relating to the Expanded Public Works Programme (EPWP)\"F:............................. V:............................ T:............................ ","N/A",0]
[]
[1,1,17,null,"12.3 RECORD KEEPING","H3",0]
[]
[1,1,17,77,"12.3.1 Every employer must keep in the project site office the following  minutes of site progress minutes; contractors’ monthly site progress reports; accurately recorded attendance register; proof of payment as means to verify authenticity of data in the EPWP Beneficiary form submitted with payment certificates. Copies of submitted EPWP beneficiary data forms should also be kept in the site office.  F:............................. V:...................T:.......................... ","N/A",0]
[]
[1,1,17,78,"12.3.2 The employer must keep this record for a period of at least three (3) years after the completion of the project in his/her office as the project site office would have been relocated. This should be safely kept for job creation data verifications and periodical audits on projects conducted by National and Provincial  Department of Public Works  after one (1) or two (2) quarters of submitting captured EPWP Data to the National EPWP coordinating Department.    F:........................... V:...................... T:...................... ","Item",0]
[]
[1,1,18,null,"E12.4 EPWP REPORTING as per EPWP DATA FORM","H3",0]
[]
[1,1,18,79,"At the end of each month as part of site progress report and to be attached to every contractors’ progress payment certificate; the contractor shall provide the principal agent & Public Works with a written records, as per EPWP data form; which will be reflecting, beneficiaries full name & surname; ID No and job description of labour employed by main contractor and sub-contractors on site. At the end of each month the contractor must submit the following documents to be attached to the Progress payment certificate:1. EPWP monthly data collection form 2. Worker monthly payment upload3. Worker monthly proof of payment  i.e 3.1 Acknowledgement of receipt of payment or3.2 Payslips 3.3 Bank statement highlighted the workers paid 4. Worker monthly training form 5. Monthly attendance register6. Certified copies of ID’s (once off)7. ID size photos (once off)8. Proof of UIF 9. Proof of COIDAF:....................... V:..................... T:.......................","Item",0]
[]
[1,1,19,null,"E12.5  EPWP PROMOTION","H3",0]
[]
[1,1,19,80,"12.5.1 EPWP signage board  EPWP Program at the project level shall always be promoted through have the projects signage board that embrace EPWP logo at the bottom, correct measurement for this signage board will be provided by the project leader during the site handing over meeting. the standard \"HELVETIVA Medium \" letters are to be used . Professional title to be 10 mm above line . Line thickness to be 8 mm thick . Space between bottom of the line and bottom of the lettering below the line has to be 100 mm. Letter sizes are as follows : Helvetian medium 100 mm black upper case to be for project name and owner . Helvetian medium 75mm black upper case only to be used for professional titles.Project name and owner shall be black lettering on white background board sizes are as follows : Board to be minimum 2000mm from ground level and to be constructed from reinforced formed chromadek panels minimum 0,6mm thick chromadek. The contractor is responsible for ensuring that the project board remains neatly and safely erected for the full duration including maintenance period, after which the project board and post are to be dismantled and handed to the client in good order.         F:........................ V:........................ T:........................","N/A",0]
[]
[1,1,19,81,"12.5.2 Branding of labour apparel  Contractor & Sub-contractors’ labourers shall be provided with EPWP branded Personal Protective Equipment (PPE), reflector vest with EPWP wording at the back is an ideal and cost effective means of promoting program on site. The contractor is then advised to price for both item 17.5.1 and 17.5.2  F:........................ V:....................... T:.........................","N/A",0]
[]
[1,1,21,null,"E12.6 COMMUNITY LIAISON OFFICER (CLO)","H3",0]
[]
[1,1,21,82,"UTILISATION OF A COMMUNITY LIAISON OFFICER  In addition to the requirements of Clause E9, contained in this document;   The Contractor shall allow for and pay any and all costs necessary for the engagement of the services of a Community Liaison Officer (CLO) for the full duration of this contract.  In the interest of providing a sound service to both the community and the Contractor, a CLO may only manage one project at a given time.  A CLO will be identified by the local structures of the ward areas and appointed following fair and transparent interviewing process, to be conducted in the presence of local structures and the contractor representative, in order to assist the Contractor in the procurement of any local labour, etc. required for this project. The Contractor is to liaise with the CLO and afford him any assistance needed in ensuring sound working relations with the local community.  Key Responsibilities of the CLO are envisaged to include and not necessary be limited to:  1. Assisting local leadership in conducting skills and resources audit which facilitates sourcing labour from within the ward or targeted areas for employment, as required by contractor.  2. Assisting in sourcing labour-only domestic sub-contractors and the procurement of materials from local resources, as required by the contractor.  3. Assisting the contractor by identifying areas of potential conflict and or threats to the project or to stakeholders in the project and recommend appropriate action to the contractor.  4. Assisting contractor and stakeholders in the project in the resolution of any conflict which may arise.  5. Establishing and ensuring that sufficient and open communication channels between the contractor and the work force are maintained.  6. Establish and ensuring that efficient and open communication channels between the contractor and the community are maintained  7. Identifying and reporting to the Contractor regarding issues where communication between stakeholder is necessary, recommend courses of action and facilitate such communications  8. Assisting the Contractor and the work force in the establishment of grievance procedures and necessary recommendation to the Contractor regarding the grievances and solution thereto.  9. Attending to site meetings and project implementation meetings as required by the Contractor and prepare periodic reports as may be required by the Contractor from time to time.  10. Attending to such other duties which are consistent with the functions of a CLO, as may be required by the Contractor from time to time.  Tenderers are to price twice the rate of unskilled local labour rate against this item for any and all costs arising out of compliance with the foregoing and in the event of a Tenderer failing to price against this item or making inadequate financial provision against this item for compliance as aforesaid, then no claim for costs or additional cost incurred will be entertained by the Head: Works  F:........................ V:......................... T:....................... ","Item",0]
[]
[1,1,22,null,"E12.7  SKILLS DEVELOPMENT ON SITE","H3",0]
[]
[1,1,22,83,"Contractor in conforming to the object of EPWP that its beneficiaries need to be capacitated with skills that will render them employable in the future. It is then the responsibility of the Contractor that mandatory life skills are provided to 100% of workforce on site and on the job training to labourers from whom the potential for further development has been identified. The latter is not mandatory to all as it covers technical skills.   Contractor should also make provision for the possibility that there might be local youth that will need to be placed on the project with an intention to be provided support towards improving their level of competency and productivity. Contractor shall also provide all necessary on-the-job training to targeted labour to enable such labour to master and advance on techniques required to undertake the work in accordance with requirements of the contract in a manner that does not compromise workers health and safety.  F:......................... V:........................ T:........................","Item",0]
[]
[1,1,22,null,"E12.8 LABOUR ONLY Sub Contracting for local emerging enterprises","H3",0]
[]
[1,1,22,null,"Tenderer’s are advised that this contract is subject to the Expanded Public Works Programme (EPWP) and the following criteria will apply: ",null,0]
[]
[1,1,23,null,"AFRICAN EQUITY OWNERSHIP","H4",0]
[]
[1,1,23,84,"a)  The Tenderer is to allow for  5% of the total value of works to be undertaken by a Priority Population Group.  This percentage excludes the costs of employing local unskilled labour. The allocation of this percentage from the Project, the screening of people, the selection of skills, will be for the Contractor to adjudicate.  b)  The Priority Population Group consists of women, youth and disabled people.  c)  The Contractor is to give first option for prospective PPG’s from the surrounding areas of the Project. Should there be insufficient suitable people fitting the criteria of PPG’s, the Contractor may hire people from further afield. This is to be done only after consultation with the Department of Works EPWP Co-ordinator and the Community Liaison Officer (CLO).  d)  A Mentor is to be employed by the Contractor, in consultation with the Department of Works for the purposes of quality control and liaison between the Contractor and the selected PPG’s on site. The mentor will be responsible for ensuring an acceptable level of quality workmanship and that such work carried out by the PPG's is executed within the time frames stipulated.   In so far as possible, the Contractor is encouraged to expand the PPG’s skills, knowledge and performance levels.  F:........................ V:........................ T:.......................","Item",0]
[]
[1,1,24,null,"TENDERER'S TO NOTE CONDITIONS","H4",0]
[]
[1,1,24,null,"a) The contract to be entered into between the Contractor and the PPG’s will be a LABOUR ONLY sub-contract.  b) The Contractor will be responsible for ensuring that all materials for use by the PPG’s in the works are to be on site timeously. The Contractor shall liaise with The Mentor and PPG to determine the nature and extent of materials required and the lead time necessary.  c) The Contractor shall be responsible for the overall programming of the Works and he is to allow for monitoring the PPG’s programme and progress.  d) In conjunction with the Mentor, he is to allow for the supervision and mentoring (where necessary) of the PPG to ensure quality and adherence to standard building practice  e) The Contractor is to allow for extra storage facilities on site for the PPG’s tools and equipment.  f) Basic tools shall be provided by the PPG’s and where these are not available; the Contractor will supply him with the necessary tools and equipment and deduct the costs thereof from the interim claims made by the PPG.  g) Work requiring specialized tools will be provided free of charge by the Contractor with the provision that these be returned upon completion of the Work.     ",null,0]
[]
[1,1,25,null,"CO-ORDINATION","H4",0]
[]
[1,1,25,85,"The Contractor is to co-ordinate the work of all the PPG’s, Sub-Contractors and Nominated Sub- Contractors appointed direct by the Employer in such a manner and at all times as will suit the building programme and he is to allow adequate access, for the PPG’s, where required, to carry out their work in an efficient manner as no claims for extras in this connection will be entertained.  F:........................  V:.......................  T:...................... ","Item",0]
[]
[1,1,25,null,"ATTENDANCE ","H4",0]
[]
[1,1,25,86,"The Contractor may allow for attendance upon the PPG’s concerned to execute the work. The Contractor is to allow the PPG’s the use of any scaffolding belonging to him while it remains so erected on the site.   Where scaffolding is necessary for the use by any PPG and the Contractor has not erected any for his own use or has removed same after his own use, the Contractor shall supply sufficient scaffolding to the PPG to be erected and dismantled by the PPG and returned to the Contractor.  This attendance upon PPG’s to execute the work is to include for the scaffolding provisions as aforesaid and, in addition, is to include for co-operating to the fullest extent with all the parties, attending on off-loading materials, providing suitable storage for tools and materials used by the PPG’s, use of general facilities such as latrines, etc., supply and cost of power, lighting, water and the like.  F:.........................  V:.......................  T:........................","Item",0]
[]
[1,1,26,null,"E12.9 EPWP CONTRACT FOR LABOUR","H3",0]
[]
[1,1,26,87,"It is compulsory that shortly after the contractor and or sub contractor has appointed local labour, the employment contract should be signed by both parties, prior to commencement with works on site. The employment contract forms part of the Ministerial Determination or from the regional EPWP officials. Each contract will lapse at the end of each financial year therefore requiring the Contractor  to do a renewal of each contract should the need of employment still exist for that particular labourer.  F:........................  V:......................  T:..........................","Item",0]
[]
[1,1,26,null,"E12.10  EPWP SCOPE OF WORK","H3",0]
[]
[1,1,26,null,"Contractors are to price any item on the Bill of Quantities having below, bearing in mind that they are regarded as  main sources of job creation, whether sub contracted or undertaken by the main contractor.",null,0]
[]
[1,1,26,88,"Elements on the scope of work where application of Labour Intensive Construction methods as  will indicated with letters (LI) are regarded feasible are as follows;  i)  Excavating trenches for foundations and any other civil works with the  depth not more than 1.5 m   ii)  All masonry works which include concrete mixing on site; brickwork; plastering; screed works; jointing; etc.  iii)  Painting, Plumbing, Ironmongery; roof cladding; glazing; tilling; carpentry; flooring; waterproofing; etc.  F:........................ V:........................ T:........................","Item",0]
[]
[1,1,28,89,"  Note: It is a general requirement of this contract that persons normally resident in the ward of the works (local labour) be given preference for employment on the contract. Provided, however, that should adequate and appropriate labour not be available within the ward, others may be employed subject to satisfactory proof being provided that every reasonable endeavour has been made to employ local labour (Local Sub-contractor(s); Skilled; Semi-Skilled and Unskilled). The contractor shall in consultation with the local community leaders with the purpose of negotiating with them regarding the utilization of local resources in the construction process. In this regard, the contractor shall furthermore give preference, wherever possible to the employment of single heads of households, women and youth as well as families declared as most indigent by War on Poverty/ Sukuma Sakhe program profiling process. The contractor should aim, in general, to maximise the involvement of the local community, however workers from other communities should not exceed 20% of all persons working on the project, where local employees possess skills at level of competency that meet contractors requirements.  Payment for the labour-intensive component of the works. Payment for works identified in the Scope of Work as being labour-intensive shall only be made in accordance with the provisions of the Contract if the works are constructed strictly in accordance with the provisions of the Scope of Work. Any non-payment for such works shall not relieve the Contractor in any way from his obligations either in contract or in delict.  Linkage of payment for labour-intensive component of works to submission of project data.  The Contractor’s payment invoices shall be accompanied by labour information for the corresponding period in a format specified by the employer. If the contractor chooses to delay submitting payment invoices, labour returns shall still be submitted as per frequency and timeframe stipulated by the Employer. The contractor’s invoices shall not be paid until all pending labour information has been submitted.  Applicable labour laws  The current Ministerial Determination (also downloadable at www.epwp.gov.za)  Expanded Public Works Programmes, issued in terms of the Basic Conditions of Employment Act of 1997 by the Minister of Labour in Government Notice , shall apply to works described in the scope of work as being labour-intensive and which are undertaken by unskilled or semi-skilled workers.  F:......................... V:....................... T:....................... ","Item",0]
[]
[1,1,28,null,"E13  HIV/AIDS AWARENESS","H3",0]
[]
[1,1,28,null,"Tenderers are to price against the following items for compliance with the SPECIFICATION FOR HIV/AIDS AWARENESS  bound into this document (The clauses referred to are those of the Specification for HIV/AIDS)",null,0]
[]
[1,1,28,90,"E13.1    Provide and maintain a condom dispenser in             terms of Clause 5.1a)              F:................... ... V:................... T:...................","Item",0]
[]
[1,1,28,91,"E13.2    Provide and maintain HIV/AIDS awareness posters  terms of Clause 5.1b)              F:................... V:................... T:................. ","Item",0]
[]
[1,1,28,92,"E13.3   HIV /Aids Awareness Programme on Site for notless than 90% of workers inclusive of all direct and indirect costs; Engage a qualified service provider as describedin the scope of works to conduct an HIV Awareness Programme  in terms of Clause 5.2.1a)             F:.................... V:................... T:...................","Item",0]
[]
[1,1,28,93,"E13.4   Arrange for workers to attend the HIVAwareness Programme in terms of Clause 5.2.1b)            F:..................  V:..................  T:.................","Item",0]
[]
[1,1,29,null,"E13  HIV/AIDS AWARENESS","H3",0]
[]
[1,1,29,94,"E13.5   Reporting            Prepare and attach to claims for payment a briefreport in terms of Clause 5.3 (see also HIV/STI Compliance Report includedwith this document).             F:................... V:..................... T:....................             Note: In the event that the contractor fails to satisfy the requirements of this specification, the employer (Head: Public Works) may apply any of the sanctions provided for in the contract. Sanctions may include the application of a financial penalty of .04% of the Contract Sum per calendar day of which the required reports has not been submitted.","Item",0]
[]
[1,1,29,null,"E14  OCCUPATIONAL HEALTH AND SAFETY ACT NO. 85 OF 1993","H3",0]
[]
[1,1,29,95,"Tenderers are to allow for costs in providing  a project specific ' Construction Phase Safety, Health and Environmental Plan' in accordance with  \"Section 2 - Specification Data associated with SANS 1921-1:2004\" clause C4.18 in \"Part C3 - Scope of Work\"  F:...................  V:.....................  T:.................... ","Item",0]
[]
[1,1,29,null,"E15  NOTICE BOARD, SITE OFFICE, ETC.","H3",0]
[]
[1,1,29,96,"Bidders are to allow for the provision and removal of a project notice board and a site office in accordance with the Principal Agent's requirements.  F:...................... V:.................... T:..................... ","Item",0]
[]
[1,1,30,null,"E16  IMPORTED MATERIALS AND EQUIPMENT","H3",0]
[]
[1,1,30,97,"Where imported items are listed in the tender documents, the tenderer shall provide all information called for, failing which the price of any such item, material or equipment shall be excluded from currency fluctuations. (Refer to T2.14 - Schedule of Imported Materials and Equipment.  F:..................  V:.....................  T:..........................","Item",0]
[]
[1,1,30,null,"E17  CONTRACT DOCUMENTS","H3",0]
[]
[1,1,30,98,"The drawings issues with these Bid documents do not comprise the complete set but serves as a guide only for Biding purposes and for indicating the scope of works to enable the Bidder to acquaint him with the nature and extent of the works and the manner in which they are to be executed. Should any part of the drawings not be clearly legible to the Bidder he shall, before submitting his Bid, obtain clarification in writing from the principal agent.   F:..................... V:................... T:..................... ","Item",0]
[]
[1,1,30,null,"E18  GENERAL PREAMBLES","H3",0]
[]
[1,1,30,99,"The Document Preambles will be the “ASAQS Model Preambles for Trades – 2008” and is obtainable from the various Regional Office’s of the Department of Public Works and shall be read in conjunction with the Bills of Quantities and be referred to for the full descriptions of work to be done and materials to be used.  F:.................... V:..................... T:..................... ","Item",0]
[]
[1,1,31,null,"E19  TRADE NAMES","H3",0]
[]
[1,1,31,100,"Wherever a Trade Name for any product has been described in the Bills of Quantities the Bidder's attention is drawn to the fact that any other product of equal quality may be used subject to the written approval of the Principal Agent being obtained prior to the closing date for submission of Bids.  F:..................... V:....................... T:....................... ","Item",0]
[]
[1,1,31,null,"E20  EXISTING PREMISES OCCUPIED","H3",0]
[]
[1,1,31,101,"Refer to Scope of Works  Part C3 of this Bid Document for information on the occupation of existing buildings.  F:................... V:.................... T:..................... ","Item",0]
[]
[1,1,31,null,"E21  INACCURATE AND DEFECTIVE WORK EXECUTED UNDER PREVIOUS CONTRACT","H3",0]
[]
[1,1,31,102,"The contractor shall, after taking possession of the site and before commencing the work, check all levels, liners, profiles and the like and satisfy himself as to the dimensional accuracy of all work executed under the previous contract which may affect his work. Should any inaccurate or defective work be found, the contractor shall immediately notify the principal agent in writing requesting his instructions with regard thereto and afford every facility to those rectifying such inaccurate or defective work.  F:.................... V:..................... T:..................... ","Item",0]
[]
[1,1,31,null,"E22  VIEWING THE SITE IN SECURITY AREAS","H3",0]
[]
[1,1,31,103,"If the site is situated in a security area and the Bidder must arrange with the Authorities to obtain permission to enter the site for Bidding purposes.  F:......................  V:....................  T:....................... ","Item",0]
[]
[1,1,32,null,"E23  COMMENCEMENT OF WORKS IN SECURITY AREAS","H3",0]
[]
[1,1,32,104,"If the works falls within a security area, the contractor must arrange with the Authorities and give the necessary notices before commencement of the works. Should the contractor fail to make such arrangements, admission to the site may be refused and any additional costs will be for the contractor's account.  F:......................  V:......................  T:..................... ","Item",0]
[]
[1,1,32,null,"E24  ENTRANCE PERMITS TO SECURITY AREAS","H3",0]
[]
[1,1,32,105,"If the works fall within a security area, the contractor shall obtain entrance permits for his personnel and workmen entering the area and shall comply with all regulations and instructions which may be issued from time to time regarding the protection of persons and property under control of the Authority.  F:.......................  V:.......................  T:...................... ","Item",0]
[]
[1,1,32,null,"E25  SECURITY CHECK OF PERSONNEL","H3",0]
[]
[1,1,32,106,"The principal agent may require the contractor to have his personnel and workmen, or a certain number of them, security classified. In the event of the principal agent requesting the removal of a person or persons from the works for security reasons, the contractor shall do so forthwith and shall thereafter ensure that such person or persons are denied access to the works and the site and/or to any document or information relating to the works.  F:....................... V:...................... T:....................... ","Item",0]
[]
[1,1,33,null,"E26  PROHIBITION ON TAKING PHOTOGRAPHS","H3",0]
[]
[1,1,33,107,"In terms of article 119 of the Defence Act, 44 of 1957, it is prohibited to sketch or to take photographs of any military site or installation or any building or civil works thereon or to be in possession of a camera or other apparatus used for taking photographs, except when authorised thereto by or on behalf of the Minister. The same prohibition is also applicable to all Correctional Institutions in terms of article 44.1(e) of the Correctional Services Act 8 of 1959.  F:........................ V:...................... T:...................... ","Item",0]
[]
[1,1,33,null,"E27  MANAGEMENT OF WATER","H3",0]
[]
[1,1,33,108," Water for Construction purposes must be obtained from alternative water sources (i.e. supply other than water that is produced and distributed by a regulated water service authority from a licenced water treatment works for human consumption), eg dams, rivers, boreholes, springs, rainwater harvesting, recycled sewerage water, etc. The alternative water source shall not be of an inferior quality / standard than that required for construction purposes. The client reserves the right through his agents to test such supplies or request certificates confirming the grade and nature of the water supply. Relevant knowledge of the respective area will be an advantage.   F:.....................  V:.....................  T:....................... ","Item",0]
[]
[1,1,34,null,"E28  ELECTRICITY CONSUMPTION","H3",0]
[]
[1,1,34,109,"The contractor will be responsible to remunerate the school with an amount of R 1200.00/month for electricityused on the site during the construction period and from site handover until works completion is reached and must make allowance in their preliminaries for such payment to the school on a monthly basis and if this is not paid, it will be deducted in the final account. The above mentioned electricity payments will onlybe applicable if the contractor make use of the school's electricity. However the school is not obligedto supply the contractor with electricity, and if so thecontractor must provide his own electricity for construction purposes. Contractors also need tofactor in the unavailability of electricity due to load shedding or any other disruptions and no claims withreference to any such disruptions will be entertained inrespect of time or money.   F:.....................  V:.....................  T:....................... ","Item",0]
[]
[]
[{"$nulls":4},"SUMMARY OF CATERGORIES"]
[{"$nulls":4},"Category :Fixed ___________"]
[{"$nulls":4},"Category :Value ___________"]
[{"$nulls":4},"Category :Time ___________"]
[]
[1,1,{"$nulls":4},"0.0",null,{"$f":"+I37","v":{"v":0,"d":"0.00"}}]
[]
[2,1,47,null,"ALTERATIONS BILL NO. 1ALTERATIONS","H1","0.0"]
[]
[2,1,47,null,"MODEL PREAMBLES","H2","0.0"]
[]
[2,1,47,null,"The tenderer is referred to the \"Model Preambles for Trades 2008\" for supplementary and comprehensive expansion of descriptions, appropriate provision for which shall be deemed to have been included in all relevant rates",null,"0.0"]
[]
[2,1,47,null,"(CPAP WORK GROUP NO. 102 UNLESS OTHERWISE STATED)","H2","0.0"]
[]
[2,1,47,null,"TEMPORARY BARRIERS, SCREENS, ETC","H2","0.0"]
[]
[2,1,47,null,"Temporary barriers, screens, etc including removal and allow for re-use","H3","0.0"]
[]
[2,1,47,1,"SANS approved weld mesh type temporary barrier fencing 1,5m high fixed to and including 100mm diameter gum poles set securely min 300mm deep in ground at max 3m spacing including excavation, backfilling, etc","m",150,null,{"$f":"+G386*H386","v":{"v":0,"d":"0.00"}}]
[]
[2,1,48,null,"Temporary protection and waterproofing of roofs","H3",0]
[]
[2,1,48,2,"Temporary waterproof and weatherproof protection of buildings  where roofing and related items have been removed during construction including the supply, installation and rotation of the temporary protection throughout the  contract period  as per the  construction program ","m2",514,null,{"$f":"+G390*H390","v":{"v":0,"d":"0.00"}}]
[]
[2,1,48,null,"REMOVAL OF EXISTING WORK","H2",0]
[]
[2,1,48,null,"Break down and remove brickwork etc","H3",0]
[]
[2,1,48,3,"M140 Blockwork in beamfill and small areas","m2",83,null,{"$f":"+G396*H396","v":{"v":0,"d":"0.00"}}]
[]
[2,1,48,4,"500 x 250 x 2500mm high Block Columns","No",11,null,{"$f":"+G398*H398","v":{"v":0,"d":"0.00"}}]
[]
[2,1,48,5,"150mm Concrete Topping in classrooms","m2",192,null,{"$f":"+G400*H400","v":{"v":0,"d":"0.00"}}]
[]
[2,1,48,null,"Take out and remove doors, windows, etc from brickwork to remain","H3",0]
[]
[2,1,48,6,"Timber door and metal door frame 0,9 x 2,1m high M140 block wall","No",14,null,{"$f":"+G404*H404","v":{"v":0,"d":"0.00"}}]
[]
[2,1,48,7,"Timber door from metal door frame 0,9 x 2,1m high M140 block wall","No",1,null,{"$f":"+G406*H406","v":{"v":0,"d":"0.00"}}]
[]
[2,1,49,8,"Glazed steel window 1,0 x 1,25m high from M140 block walls","No",4,null,{"$f":"+G408*H408","v":{"v":0,"d":"0.00"}}]
[]
[2,1,49,null,"Take down and remove glass & mirrors","H3",0]
[]
[2,1,49,9,"Glass from steel windows including cleaning out rebates & preparing for new glass (new glass elsewhere)","m2",10,null,{"$f":"+G412*H412","v":{"v":0,"d":"0.00"}}]
[]
[2,1,49,null,"Take down and remove roofs, floors, panelling, ceilings, partitions, etc","H3",0]
[]
[2,1,49,10,"Corrugated metal roof sheeting, including timber purlins, underlay etc.","m2",1079,null,{"$f":"+G416*H416","v":{"v":0,"d":"0.00"}}]
[]
[2,1,49,11,"Timber roof structure comprising trusses, rafters, etc spaced at 1 200mm centres","m2",992,null,{"$f":"+G418*H418","v":{"v":0,"d":"0.00"}}]
[]
[2,1,49,12,"Gypsum plasterboard ceilings including cornices, timber brandering, etc not exceeding 3,5m high","m2",119,null,{"$f":"+G420*H420","v":{"v":0,"d":"0.00"}}]
[]
[2,1,49,13,"Fascia boards and fixings ","m",245,null,{"$f":"+G422*H422","v":{"v":0,"d":"0.00"}}]
[]
[2,1,49,14,"Barge boards and fixings","m",71,null,{"$f":"+G424*H424","v":{"v":0,"d":"0.00"}}]
[]
[2,1,50,15,"Rainwater gutters and fixings","m",224,null,{"$f":"+G426*H426","v":{"v":0,"d":"0.00"}}]
[]
[2,1,50,16,"Rainwater downpipes and fixings","m",68,null,{"$f":"+G428*H428","v":{"v":0,"d":"0.00"}}]
[]
[2,1,50,null,"Hack up/off & remove grano, screed, plaster & prepare surface to receive new","H3",0]
[]
[2,1,50,17,"30mm Screed from floors in patches","m2",489,null,{"$f":"+G432*H432","v":{"v":0,"d":"0.00"}}]
[]
[2,1,50,18,"Internal plaster to brickwork in patches","m2",176,null,{"$f":"+G434*H434","v":{"v":0,"d":"0.00"}}]
[]
[2,1,50,19,"External plaster to brickwork in patches","m2",70,null,{"$f":"+G436*H436","v":{"v":0,"d":"0.00"}}]
[]
[2,1,50,null,"Alter Openings","H3",0]
[]
[2,1,50,20,"Alter opening in one brick wall where 1 300 x 1 100mm high steel window removed to form opening for new kitchen roller shutter door size 2 500 x 1 115mm high overall by breaking out blockwork on both sides and bottom, including making good cement plaster into reveals and with Reinforced brick lintel.","No",1,null,{"$f":"+G440*H440","v":{"v":0,"d":"0.00"}}]
[]
[2,1,50,null,"Disconnect, demolition and remove ","H3",0]
[]
[2,1,50,21,"Pit latrine seat complete","No",4,null,{"$f":"+G444*H444","v":{"v":0,"d":"0.00"}}]
[]
[2,1,50,null,"STRUCTURAL REPAIRS","H2",0]
[]
[2,1,51,null,"Repairs to structural cracks, etc","H3",0]
[]
[2,1,51,22,"Rake out existing minor structural crack in blockwork, remove all debris/loose material including four times shot fixing 32 x 1,6mm thick strap x 500mm long and plaster over (plaster measured elsewhere)","m",58,null,{"$f":"+G450*H450","v":{"v":0,"d":"0.00"}}]
[]
[2,1,51,23,"Rake out existing major structural crack blockwork, remove all debris/loose material including embedding steel rods, cutting or drilling slots (60mm deep) in brickwork at 250mm centres to embed 8mm mild steel bars fixed between mortar joints with injected epoxy resin","m",19,null,{"$f":"+G452*H452","v":{"v":0,"d":"0.00"}}]
[]
[2,1,51,null,"SERVICE","H2",0]
[]
[2,1,51,null,"Windows","H3",0]
[]
[2,1,51,24,"Service steel window including lubricating ironmongery and leave in workable condition (replacement of damaged/ missing ironmongery measured elsewhere)","No",86,null,{"$f":"+G458*H458","v":{"v":0,"d":"0.00"}}]
[]
[2,1,51,null,"Inspection and Repairs of Existing Roofs","H3",0]
[]
[2,1,51,25,"The contractor is to carry out an inspection of the existing roofs and replace all loose, damaged roof screws with approved 8mm diameter with 26mm diameter washers and gaskets including the re-fixing of all looses roof sheets, in accordance to the manufacturer's instructions.","m2",78,null,{"$f":"+G462*H462","v":{"v":0,"d":"0.00"}}]
[]
[2,1,51,null,"SUNDRIES","H2",0]
[]
[2,1,52,null,"Desludging","H3",0]
[]
[2,1,52,null,"Debris and rubble covering the access to the pit latrine must be cleared and disposed of at a registered landfill site. The pit latrine is to be accessed by the removable cover or removal of the access concrete slab. The solids that cannot be pumped out must be dug out by mechanical means. When the contents of the pit or tank are to be pumped out and the sludge is too firm or dry it must be jetted with a high pressure hose and agitate the mixture of sludge and water with the end of the suction  hose before pumping begins. After pumping out the contents of the pit, the tanker must be driven to a legally authorised safe-disposal site, such as an off-site sewage treatment works, where the contents can be emptied. Dry pits or pits containing large quantities of solid materials incluidng stones, sticks, plastic bags, debris, etc. must be cleaned by individuals with hand held mechanical machinery with the appropriate protective gear in terms of the OHS Act as well as certified to work in confined spaces. Contractors are to ensure that the vacuum tankers are suitable to manoeuvre close to latrines without compromising the integrity of the pit latrine",null,0]
[]
[2,1,52,26,"Clean out pit latrine by desludging. Contractor to price per toilet seat approximately 2Kl in volume","No",8,null,{"$f":"+G470*H470","v":{"v":0,"d":"0.00"}}]
[]
[2,1,52,null,"Temporary Accommodation","H3",0]
[]
[2,1,53,null,"Provide temporary accommodation units (park homes) for Educational Facilities during construction in phases as herewith measured including leveling of area, positioning on site and connected electrical supply including issue of electrical compliance certificate. Park homes to be standard size class room size and needs to be minimum 7 x 7m or nearest standard size","H3",0]
[]
[2,1,53,27,"Rental of temporary accommodation approximate size 7 x 7m wide, including standard windows, burglar bars, curtains and tracks, two tier steps for access, light fittings, electrical certificate of compliance, for a period of ten (10) calendar months","No",6,null,{"$f":"+G476*H476","v":{"v":0,"d":"0.00"}}]
[]
[2,1,53,28,"Two tier steps for ten (10) Calendar months","No",6,null,{"$f":"+G478*H478","v":{"v":0,"d":"0.00"}}]
[]
[2,1,53,29,"Electrical Compliance Certificate","No",6,null,{"$f":"+G480*H480","v":{"v":0,"d":"0.00"}}]
[]
[2,1,53,30,"Transportation and establishment on site and de-establishment on completion temporary accommodation units approximate size 7 x 7m wide","No",6,null,{"$f":"+G482*H482","v":{"v":0,"d":"0.00"}}]
[]
[2,1,53,null,"Temporary Ablutions","H3",0]
[]
[2,1,53,31,"Rental of temporary plastic ablutions approximate size 1,2 x 1,2 x 2,3m high for the sole use by the school, for 6 months inclusive of  servicing on a regular basis. Ablutions are to be kept clean and in operation for the duration of the contract","No",8,null,{"$f":"+G486*H486","v":{"v":0,"d":"0.00"}}]
[]
[2,1,54,32,"Transportation and establishment on site and de-establishment on completion temporary ablutions approximate size 1,2 x 1,2 x 2,3m high","No",8,null,{"$f":"+G488*H488","v":{"v":0,"d":"0.00"}}]
[]
[2,1,{"$nulls":4},0,null,{"$f":"SUM(I385:I489)","v":{"v":0,"d":"0.00"}}]
[]
[3,1,56,null,"BILL No. 1 : EARTHWORKS","H1",0]
[]
[3,1,56,null,"MODEL PREAMBLES","H2",0]
[]
[3,1,56,null,"The tenderer is referred to the \"Model Preambles for Trades 2008\" for supplementary and comprehensive expansion of descriptions, appropriate provision for which shall be deemed to have been included in all relevant rates",null,0]
[]
[3,1,56,null,"SUPPLEMENTARY PREAMBLES","H2",0]
[]
[3,1,56,null,"Proprietary products in descriptions:","H4",0]
[]
[3,1,56,null,"Proprietary products shall be used as specified. Substitute products of similar quality and specification may only be used with prior approval by the Principal Agent.",null,0]
[]
[3,1,56,null,"Nature of material to be excavated:","H4",0]
[]
[3,1,56,null,"The material to be excavated is assumed to be predominantly of a composition that will allow excavation in \"earth\" as specified, but including a percentage of excavation in \"soft rock\" and \"hard rock\".",null,0]
[]
[3,1,56,null,"Carting away of excavated material:","H4",0]
[]
[3,1,56,null,"Descriptions of carting away of excavated material shall be deemed to include loading excavated material onto trucks directly from the excavations, or alternatively, from stock piles situated on the building site.",null,0]
[]
[3,1,57,null,"Dewatering of excavations:","H4",0]
[]
[3,1,57,null,"The Contractor shall allow for removing seepage and other water from subterranean sources from the excavations by pumping, baling or otherwise.Accurate records of all such dewatering shall be kept to determine the total volume of water so removed and a clear distinction shall be made between water from subterranean sources and other water",null,0]
[]
[3,1,57,null,"Density testing on filling:","H4",0]
[]
[3,1,57,null,"Rates for filling, etc. shall include for all density and soil type testing to prove that the specified compaction is achieved.When additional testing is done on instruction of the  Principal Agent and these tests are successful, they will be paid for additionally.",null,0]
[]
[3,1,57,null,"Imported fill:","H4",0]
[]
[3,1,57,null,"\"Filling and bedding to trenches etc. to be in compliance with SABS 1200 DB and LB respectively\"",null,0]
[]
[3,1,57,null,"EXCAVATION OTHER THAN BULK","H2",0]
[]
[3,1,57,null,"Excavation in earth not exceeding 2m deep:","H3",0]
[]
[3,1,57,1,"Reduced levels under floors.","m3",29,null,{"$f":"+G528*H528","v":{"v":0,"d":"0.00"}}]
[]
[3,1,57,null,"Extra over all excavations for carting away:","H3",0]
[]
[3,1,57,2,"Surplus material from excavations and/or stock piles on site to a dumping site to be located by the contractor.","m3",19,null,{"$f":"+G532*H532","v":{"v":0,"d":"0.00"}}]
[]
[3,1,57,null,"EARTH FILLING, ETC.","H2",0]
[]
[3,1,57,null,"Earth filling (G5 material) supplied by the contractor compacted to 98% Mod AASHTO density:","H3",0]
[]
[3,1,57,3,"Under floors, steps, pavings, footings, etc.","m3",19,null,{"$f":"+G538*H538","v":{"v":0,"d":"0.00"}}]
[]
[3,1,58,null,"Coarse river sand filling supplied by the contractor:","H3",0]
[]
[3,1,58,4,"Under floors etc. (Provisional).","m3",10,null,{"$f":"+G542*H542","v":{"v":0,"d":"0.00"}}]
[]
[3,1,58,null,"Compaction of surfaces:","H3",0]
[]
[3,1,58,5,"Compaction of ground surface under floors etc including scarifying for a depth of 150mm, breaking down oversize material, adding suitable material where necessary and compacting to 93% Mod AASHTO density.","m2",192,null,{"$f":"+G546*H546","v":{"v":0,"d":"0.00"}}]
[]
[3,1,58,null,"Prescribed density tests on filling:","H3",0]
[]
[3,1,58,6,"Allow for compaction tests by an approved laboratory to determine density of filling material.","No",2,null,{"$f":"+G550*H550","v":{"v":0,"d":"0.00"}}]
[]
[3,1,58,null,"SOIL POISONING","H2",0]
[]
[3,1,58,null,"Approved brand of anti-termite soil poison applied by a Registered Pest Control company and guaranteed against termite infestation for ten years:","H3",0]
[]
[3,1,58,7,"Under floors, etc., including forming and poisoning shallow furrows against foundation walls, etc., filling in furrows and ramming.","m2",192,null,{"$f":"+G556*H556","v":{"v":0,"d":"0.00"}}]
[]
[3,1,{"$nulls":4},0,null,{"$f":"SUM(I527:I557)","v":{"v":0,"d":"0.00"}}]
[]
[3,2,60,null,"BILL No. 2 : CONCRETE, FORMWORK AND REINFORCEMENT","H1",0]
[]
[3,2,60,null,"MODEL PREAMBLES","H2",0]
[]
[3,2,60,null,"The tenderer is referred to the \"Model Preambles for Trades 2008\" for supplementary and comprehensive expansion of descriptions, appropriate provision for which shall be deemed to have been included in all relevant rates",null,0]
[]
[3,2,60,null,"SUPPLEMENTARY PREAMBLES","H2",0]
[]
[3,2,60,null,"Proprietary products in descriptions:","H4",0]
[]
[3,2,60,null,"Proprietary products shall be used as specified. Substitute products of similar quality and specification may only be used with prior approval by the Principal Agent.",null,0]
[]
[3,2,60,null,"Cost of tests:","H4",0]
[]
[3,2,60,null,"The costs of making, storing and testing of concrete test cubes as required under clause 7 'Tests' of SABS 1200 G shall include the cost of providing cube moulds necessary for the purpose, for testing costs and for submitting reports on the tests to the Architect. The testing shall be undertaken by an independent firm or institution nominated by the Contractor to the approval of the Architect. (Test cubes are measured separately).",null,0]
[]
[3,2,60,null,"Formwork:","H4",0]
[]
[3,2,60,null,"Descriptions of formwork shall be deemed to include use and waste only (except where described as left in or permanent), for fitting together in the required forms, wedging, plumbing and fixing to true angles and surfaces as necessary to ensure easy release during stripping and for reconditioning as necessary before re-use.",null,0]
[]
[3,2,61,null,"The vertical strutting shall be carried down to such construction as is sufficiently strong to afford the required support without damage and shall remain in position until the newly constructed work is able to support itself.",null,0]
[]
[3,2,61,null,"Formwork to soffits of solid slabs etc., shall be deemed to be to slabs not exceeding 250mm thick unless otherwise described.",null,0]
[]
[3,2,61,null,"Formwork to sides of bases, pile caps, ground beams, etc., will only be measured where it is prescribed by the Engineer for design reasons.  Formwork necessitated by irregularity or collapse of excavated faces will not be measured and the cost thereof shall be deemed to be included in the allowance for taking the risk of collapse of the sides of the excavations, provision for which is made in Earthworks.",null,0]
[]
[3,2,61,null,"REINFORCED CONCRETE","H2",0]
[]
[3,2,61,null,"25MPa/19mm concrete:","H3",0]
[]
[3,2,61,1,"Surface beds on waterproofing.","m3",29,null,{"$f":"+G590*H590","v":{"v":0,"d":"0.00"}}]
[]
[3,2,61,null,"TEST BLOCKS","H2",0]
[]
[3,2,61,null,"Test blocks:","H3",0]
[]
[3,2,61,2,"Making and testing set of three 150x150x150mm concrete strength test cubes (Provisional).","No",2,null,{"$f":"+G596*H596","v":{"v":0,"d":"0.00"}}]
[]
[3,2,61,null,"FINISHING TOP SURFACE OF CONCRETE","H2",0]
[]
[3,2,61,null,"Finishing top surfaces of concrete smooth with a wood float:","H3",0]
[]
[3,2,61,3,"Surface beds, slabs, etc","m2",192,null,{"$f":"+G602*H602","v":{"v":0,"d":"0.00"}}]
[]
[3,2,61,null,"ROUGH FORMWORK (DEGREE OF ACCURACY III)  ","H2",0]
[]
[3,2,62,null,"Rough Formwork to Sides:","H3",0]
[]
[3,2,62,4,"Edges, risers, ends and reveals not exceeding 300mm high or wide.","m",48,null,{"$f":"+G608*H608","v":{"v":0,"d":"0.00"}}]
[]
[3,2,62,null,"MOVEMENT JOINTS ETC","H2",0]
[]
[3,2,62,null,"Expansion joints with bitumen impregnated softboard between vertical concrete or brick surfaces:","H3",0]
[]
[3,2,62,5,"12mm Joints not exceeding 300mm high (Provisional).","m",80,null,{"$f":"+G614*H614","v":{"v":0,"d":"0.00"}}]
[]
[3,2,62,null,"Saw cut joints:","H3",0]
[]
[3,2,62,6,"6 x 40mm Saw cut joints in top of concrete.","m",40,null,{"$f":"+G618*H618","v":{"v":0,"d":"0.00"}}]
[]
[3,2,62,null,"REINFORCEMENT (PROVISIONAL)","H2",0]
[]
[3,2,62,null,"Fabric reinforcement:","H3",0]
[]
[3,2,62,7,"REF. 193 fabric reinforcement in concrete surface beds, slabs, etc.","m2",192,null,{"$f":"+G624*H624","v":{"v":0,"d":"0.00"}}]
[]
[3,2,{"$nulls":4},0,null,{"$f":"SUM(I589:I625)","v":{"v":0,"d":"0.00"}}]
[]
[3,3,64,null,"BILL NO. 3  MASONRY","H1",0]
[]
[3,3,64,null,"MODEL PREAMBLES","H2",0]
[]
[3,3,64,null,"The tenderer is referred to the \"Model Preambles for Trades 2008\" for supplementary and comprehensive expansion of descriptions, appropriate provision for which shall be deemed to have been included in all relevant rates",null,0]
[]
[3,3,64,null,"BRICKWORK","H2",0]
[]
[3,3,64,null,"(CPAP WORK GROUP NO. 116 UNLESS OTHERWISE STATED)","H2",0]
[]
[3,3,64,null,"SUPERSTRUCTURE","H2",0]
[]
[3,3,64,null,"3,5MPa Cement blocks in class II mortar","H3",0]
[]
[3,3,64,1,"M140 wall in beamfilling","m2",83,null,{"$f":"+G642*H642","v":{"v":0,"d":"0.00"}}]
[]
[3,3,64,2,"M140 block walls ","m2",82,null,{"$f":"+G644*H644","v":{"v":0,"d":"0.00"}}]
[]
[3,3,64,null,"BRICKWORK SUNDRIES","H2",0]
[]
[3,3,65,null,"Galvanized brickwork reinforcement","H3",0]
[]
[3,3,65,3,"75mm Wide reinforcement built in horizontally","m",1232,null,{"$f":"+G650*H650","v":{"v":0,"d":"0.00"}}]
[]
[3,3,65,null,"15MPa Mass concrete ","H3",0]
[]
[3,3,65,4,"Infill to single row of M140 U block blockwork","m",193,null,{"$f":"+G654*H654","v":{"v":0,"d":"0.00"}}]
[]
[3,3,65,null,"Cramps, ties, etc:","H3",0]
[]
[3,3,65,5,"30 x 2mm Galvanized roof tie 1500mm long with one end fixed to timber and other built into brickwork or concrete.","No",192,null,{"$f":"+G658*H658","v":{"v":0,"d":"0.00"}}]
[]
[3,3,{"$nulls":4},0,null,{"$f":"SUM(I641:I659)","v":{"v":0,"d":"0.00"}}]
[]
[{"$nulls":4},"BILL NO. 4 WATERPROOFING"]
[]
[3,4,67,null,"MODEL PREAMBLES","H2",0]
[]
[3,4,67,null,"The tenderer is referred to the \"Model Preambles for Trades 2008\" for supplementary and comprehensive expansion of descriptions, appropriate provision for which shall be deemed to have been included in all relevant rates",null,0]
[]
[3,4,67,null,"SUPPLEMENTARY PREAMBLES","H2",0]
[]
[3,4,67,null,"Proprietary products in descriptions:","H4",0]
[]
[3,4,67,null,"Proprietary products shall be used as specified. Substitute products of similar quality and specification may only be used with prior approval by the Principal Agent.",null,0]
[]
[3,4,67,null,"DAMPPROOFING OF WALLS AND FLOORS ","H2",0]
[]
[3,4,67,null,"One layer of 250 micron USB GREEN waterproof sheeting sealed at laps with Gunplas Pressure Sensitive Tape:","H3",0]
[]
[3,4,67,1,"Under surface beds.","m2",192,null,{"$f":"+G678*H678","v":{"v":0,"d":"0.00"}}]
[]
[3,4,67,null,"JOINT SEALANTS ETC","H2",0]
[]
[3,4,67,null,"Two-part grey polysulphide sealing compound including backing cord, bond breaker, primer, etc","H3",0]
[]
[3,4,67,2,"10 x 12mm In movement joints in floors or walls including raking out expansion joint filler as necessary (Provisional).","m",80,null,{"$f":"+G684*H684","v":{"v":0,"d":"0.00"}}]
[]
[3,4,{"$nulls":4},0,null,{"$f":"SUM(I677:I685)","v":{"v":0,"d":"0.00"}}]
[]
[3,5,68,null,"BILL NO. 5  ROOF COVERINGS","H1",0]
[]
[3,5,68,null,"MODEL PREAMBLES","H2",0]
[]
[3,5,68,null,"The tenderer is referred to the \"Model Preambles for Trades 2008\" for supplementary and comprehensive expansion of descriptions, appropriate provision for which shall be deemed to have been included in all relevant rates",null,0]
[]
[3,5,68,null,"SUPPLEMENTARY PREAMBLES","H2",0]
[]
[3,5,68,null,"Sheeting","H3",0]
[]
[3,5,68,null,"The roof sheeting shall be 0,55mm AZ150 White ZincAl or equal approved IBR 686 profile roll-formed in continuous lengths and cut to length by a pneumatic cut-off process from certified Z275 galvanized steel complying with ISQ 550 (3T). A certificate verifying compliance shall be issued by the manufacturer. ",null,0]
[]
[3,5,68,null,"Finish for AZ150 Zincalume","H3",0]
[]
[3,5,68,null,"The profile shall be supplied with a paint finish G550 consisting of a full top coat \"Colourplus\" or equal approved silicone modified polyester Colour: To match existing on one side and Cool Grey backing to other",null,0]
[]
[3,5,69,null,"Assembly","H3",0]
[]
[3,5,69,null,"The AZ150 ZincAl sheets shall be fixed to every purlin strictly in accordance with manufacturer's specifications. Holes through sheeting are to be drilled and NO punching of holes are allowed. 8mm Diameter x 75mm long fixing screws with 26mm diameter washer and rubber gasket are to be used. Every precaution shall be taken to prevent damage to roof sheets during all stages of construction. Duck boards should be used when necessary to protect the sheeting from damage. Sheeting which has become deformed or damaged in any way, shall be replaced",null,0]
[]
[3,5,69,null,"Flashings","H3",0]
[]
[3,5,69,null,"Flashings shall be approved by roof sheeting manufacturer and fixed to the sheeting with S10 clips to obviate any direct fixing perforations. Prior to flashings being fixed, all troughs at the apex shall be stop-ended to the full depth of the sheet in order to prevent any penetration of wind drived water. The trough shall be lipped at the eaves end to form a drip. Flashing flanges shall be notched to the sheet profile where necessary. All these operations must be performed with special tools available from the manufacturer. Care shall be taken to ensure that no sheeting or flashing will be cut with abrasive disc on roof surface in order to prevent steel splatter from penetrating colour coated areas. The flashings shall be supplied with a paint finish consisting of a full top coat silicon modified polyester Colour : White to one side",null,0]
[]
[3,5,69,null,"Quality Assurance","H3",0]
[]
[3,5,69,null,"The manufacturer shall be assessed and certifed as complying with ISO 9001: 2008 Quality Management System",null,0]
[]
[3,5,70,null,"Guarantee","H3",0]
[]
[3,5,70,null,"AZ150 ZincAl or equal approved sheeting shall be laid in strict accordance with manufacturer's specifications by an approved contractor. The employer shall be provided with a ten year written guarantee on materials and a five year written guarantee on workmanship and water-tightness after final inspection of the roofs, by the manufacturer.  ",null,0]
[]
[3,5,70,null,"Safety","H3",0]
[]
[3,5,70,null,"The contractor shall exercise special care when handling long length sheeting, particularly in windy conditions. Should work be interrupted for any reason, all loose sheeting and incomplete sections must be adequately secured against possible movement by wind and gravity",null,0]
[]
[3,5,70,null,"Handling and Storage","H3",0]
[]
[3,5,70,null,"The contractor shall ensure that all materials used on site for cladding, etc are transported, handled and stored in accordance with the manufacturer's recommendations. Material damaged shall be rejected and replaced with undamaged material at the contractor's expense. Repair of damaged material will not generally be permitted. Rates are to include for preventing damage and protecting sheets through all stages of construction",null,0]
[]
[3,5,71,null,"Inspection Prior to Installation or Erection","H3",0]
[]
[3,5,71,null,"Before commencing with installation, the contractor shall verify that the following items have been checked and accepted: a. The entire structure or the portion thereof to be sheeted has been correctly aligned, levelled and grouted b. Purlins and sheeting rails are at the correct spacing and are within the specified tolerances c. The corners of the roof are square and the wall framework is perpendicular or as specified d. No protrusions such as bolt heads, splice plates, cleats, etc. appear on the face of the framework e. All members to which roofing and cladding are to be fixed in aesthetically sensitive areas are true and square f. Paint and any other materials that may be incompatible with the sheeting, have been painted over or so dealt with that direct contact with the sheeting is avoided g. The contact faces between the purlins or the girts and the cladding are in the same plane. Should the alignment be inadequate, the contractor shall request instructions from the engineer before proceeding with the fixing of the cladding",null,0]
[]
[3,5,71,null,"Protrusion through Sheeted Surfaces","H3",0]
[]
[3,5,71,null,"Protrusions such as pipes, ducts and the like, shall be adequately flashed where they pass through the sheeting surface. Where ribs have to be cut away to permit penetration, additional framing is to be installed as required to support the sheeting. Depending on the position of the penetration through the roof, special attention shall be given to back flashing the sheeting to the ridge or point of water entry. In all cases, all cutting and flashings shall be so arranged that adequate provision is made for the drainage of all troughs and corrugation ",null,0]
[]
[3,5,72,null,"Cleaning of Roofs, etc","H3",0]
[]
[3,5,72,null,"All debris, etc arising from the fixing of the cladding shall be removed from the sheetin as the fixing progresses. In addition, off-cuts of insulation, surplus fastners and sealants, mandrels from pop rivets, off-cuts of flashings and sheeting, surplus flashing, food packaging, cartons, bottles, cans, etc shall not be  left on the roof or in the gutters. Care shall be taken to ensure that no such material enters, blocks or partially impedes the flow of water into the outlets, downpipes, etc",null,0]
[]
[3,5,72,null,"ROOF COVERING","H2",0]
[]
[3,5,72,null,"(CPAP WORK GROUP NO. 125 UNLESS OTHERWISE STATED)","H2",0]
[]
[3,5,72,null,"PROFILED METAL SHEETING AND ACCESSORIES","H2",0]
[]
[3,5,72,null,"0,55mm Zincalume IBR 686 sheeting and accessories with \"Colorplus\"  finish (colour : Standard colour on one side and CoolGrey backing to other), in long lengths fixed using Class 3 Climaseal screws (8mm diameter with 19mm diameter washer and rubber gasket) as per manufacturer's recommendations for coastal areas to 50 x 76mm treated SA Pine purlins @ 900mm centres on Sisalation elsewhere measured ","H3",0]
[]
[3,5,72,1,"Roof covering with pitch not exceeding 25 degrees","m2",1110,null,{"$f":"+G748*H748","v":{"v":0,"d":"0.00"}}]
[]
[3,5,72,2,"Ridge covering 650mm girth, screwed through sheet to purlins","m",112,null,{"$f":"+G750*H750","v":{"v":0,"d":"0.00"}}]
[]
[3,5,73,3,"Color coded metal angle flashing made from the same roofing sheet material and the same color with size 200 x 100mm and inner drip edges as well as outer drip edge, bent at 2.5 degrees respectively, fixed to fascia through the roof sheeting to the purlins. ","m",81,null,{"$f":"+G752*H752","v":{"v":0,"d":"0.00"}}]
[]
[3,5,73,4,"Sidewall flashing, screwed through sheet to purlins and counter flashing. Counter flashing to be grooved and sealed into plastered wall","m",8,null,{"$f":"+G754*H754","v":{"v":0,"d":"0.00"}}]
[]
[3,5,73,5,"Moulded narrow and broad rib polyethelene filler blocks","m",223,null,{"$f":"+G756*H756","v":{"v":0,"d":"0.00"}}]
[]
[3,5,73,6,"Moulded Sondor Metal Polyclosures for IBR roof sheeting profile color coated. ","m",227,null,{"$f":"+G758*H758","v":{"v":0,"d":"0.00"}}]
[]
[3,5,73,null,"ROOF AND WALL INSULATION","H2",0]
[]
[3,5,73,null,"\"Sisalation 420\"  or equal approved heavy industrial grade aluminium foil based insulation","H3",0]
[]
[3,5,73,7,"Insulation laid taut over rafters (at approximately 1 200mm centres) and fixed concurrent with purlins, etc  including galvanised steel straining wires ","m2",906,null,{"$f":"+G764*H764","v":{"v":0,"d":"0.00"}}]
[]
[3,5,{"$nulls":4},0,null,{"$f":"SUM(I747:I765)","v":{"v":0,"d":"0.00"}}]
[]
[3,6,75,null,"BILL NO. 6  CARPENTRY & JOINERY","H1",0]
[]
[3,6,75,null,"MODEL PREAMBLES","H2",0]
[]
[3,6,75,null,"The tenderer is referred to the \"Model Preambles for Trades 2008\" for supplementary and comprehensive expansion of descriptions, appropriate provision for which shall be deemed to have been included in all relevant rates",null,0]
[]
[3,6,75,null,"(CPAP WORK GROUP NO. 126 UNLESS OTHERWISE STATED)","H2",0]
[]
[3,6,75,null,"Plate nailed pitched timber roof construction","H3",0]
[]
[3,6,75,null,"Sawn Softwood","H3",0]
[]
[3,6,75,1,"Design, supply and install roof truss system complete in accordance with the Standard Building Regulations to suit roof area approximate size 497m2 (measured on flat floor area inclusive of overhangs, etc) - Block A","Item",1,null,{"$f":"+G780*H780","v":{"v":0,"d":"0.00"}}]
[]
[3,6,75,2,"Design, supply and install roof truss system complete in accordance with the Standard Building Regulations to suit roof area approximate size 472m2 (measured on flat floor area inclusive of overhangs, etc) - Block B","Item",1,null,{"$f":"+G782*H782","v":{"v":0,"d":"0.00"}}]
[]
[3,6,76,3,"Design, supply and install roof truss system complete in accordance with the Standard Building Regulations to suit roof area approximate size 15m2 (measured on flat floor area inclusive of overhangs, etc) - Block F (Gate House)","Item",1,null,{"$f":"+G784*H784","v":{"v":0,"d":"0.00"}}]
[]
[3,6,76,4,"76 x 114mm false rafter fixed to rafter ends to receive fascia boards(elsewhere measured)","m",253,null,{"$f":"+G786*H786","v":{"v":0,"d":"0.00"}}]
[]
[3,6,76,5,"76 x 114mm false rafter fixed to rafter ends to receive barge boards(elsewhere measured) ","m",94,null,{"$f":"+G788*H788","v":{"v":0,"d":"0.00"}}]
[]
[3,6,76,6,"45 x 231 Grade 8 H2 spec Laminated Pine Beam","m",96,null,{"$f":"+G790*H790","v":{"v":0,"d":"0.00"}}]
[]
[3,6,76,7,"76 x 50mm Purlins ","m",1428,null,{"$f":"+G792*H792","v":{"v":0,"d":"0.00"}}]
[]
[3,6,76,8,"76 x 50mm Cross bracing","m",24,null,{"$f":"+G794*H794","v":{"v":0,"d":"0.00"}}]
[]
[3,6,76,9,"50 x 185mm x 1mm thick Mitek eCo galvanised steel long truss hanger, fixed to tie beam with 35mm x 3,15mm diameter MiTek eCo Permafix mild steel collar nails and fixed to concrete filled blockwork with 4 x M12 chemical anchors","No",168,null,{"$f":"+G796*H796","v":{"v":0,"d":"0.00"}}]
[]
[3,6,77,10,"Hurricane clips","No",2666,null,{"$f":"+G798*H798","v":{"v":0,"d":"0.00"}}]
[]
[3,6,77,11,"Prior to the erection of all the roof trusses the consulting engineer shall certify that he has received such working drawings and construction detail designs from the professional engineer employed by the contractor and that he has considered same and given permission to proceed with the fabrication of the trusses (TR1 certificate issued by Contractor's Engineer) and then before the roof covering commences the completed structure shall be inspected and certified as stable by the professional engineer employed by the contractor to ensure that the manufacture of the trusses and erection details have been complied with to his satisfaction (TR2 certificate issued by Contractor's Engineer) per block ","Item",1,null,{"$f":"+G800*H800","v":{"v":0,"d":"0.00"}}]
[]
[3,6,77,null,"EAVES, VERGES, ETC","H2",0]
[]
[3,6,77,null,"SABS approved fibre cement","H3",0]
[]
[3,6,77,12,"12 x 225mm Fascias to match existing including H-profile jointing strips","m",253,null,{"$f":"+G806*H806","v":{"v":0,"d":"0.00"}}]
[]
[3,6,77,13,"12 x 225mm Fascia's to Gable ends including H-profile jointing strips","m",94,null,{"$f":"+G808*H808","v":{"v":0,"d":"0.00"}}]
[]
[3,6,77,null,"DOORS ETC","H2",0]
[]
[3,6,77,null,"Contractor to confirm door size on site prior to purchasing as any adjustment required to be made to the doors should be made by the manufacturer and not carried out on site",null,0]
[]
[3,6,78,null,"SABS Approved Meranti","H3",0]
[]
[3,6,78,14,"44mm Framed ledged braced door with 44 x 146mm top rail and stiles, 22 x 108mm braces, 22 x 146mm lock rail, 22 x 222mm bottom rail, 22 x 70mm tongue in groove and v-jointed boarding Size 813 x 2 032mm high","No",22,null,{"$f":"+G816*H816","v":{"v":0,"d":"0.00"}}]
[]
[3,6,78,15,"44mm Framed ledged braced door with 44 x 146mm top rail and stiles, 22 x 108mm braces, 22 x 146mm lock rail, 22 x 222mm bottom rail, 22 x 70mm tongue in groove and v-jointed boarding Size 1613 x 2 032mm high ","No",1,null,{"$f":"+G818*H818","v":{"v":0,"d":"0.00"}}]
[]
[3,6,{"$nulls":4},0,null,{"$f":"SUM(I779:I819)","v":{"v":0,"d":"0.00"}}]
[]
[3,7,80,null," BILL NO. 7  CEILINGS, PARTITIONS & ACCESS FLOORING","H1",0]
[]
[3,7,80,null,"MODEL PREAMBLES","H2",0]
[]
[3,7,80,null,"The tenderer is referred to the \"Model Preambles for Trades 2008\" for supplementary and comprehensive expansion of descriptions, appropriate provision for which shall be deemed to have been included in all relevant rates",null,0]
[]
[3,7,80,null,"SUPPLEMENTARY PREAMBLES","H2",0]
[]
[3,7,80,null,"Descriptions:","H3",0]
[]
[3,7,80,null,"Items described as \"nailed\" shall be deemed to be fixed with hardened steel nails or pins or shot pinned to brickwork or concrete",null,0]
[]
[3,7,80,null,"Trade Names","H3",0]
[]
[3,7,80,null,"Where trade names are specified equal materials approved by the Principal Agent may be used",null,0]
[]
[3,7,80,null,"(CPAP WORK GROUP NO. 128 UNLESS OTHERWISE STATED)","H2",0]
[]
[3,7,80,null,"Where trade names are specified equal materials approved by the Principal Agent may be used",null,0]
[]
[3,7,81,null,"CEILINGS ETC","H2",0]
[]
[3,7,81,null,"SABS approved flexible non-combustible lightweight insulation","H3",0]
[]
[3,7,81,1,"100mm  Insulation loosely laid on top of brandering between roof timbers etc strictly in accordance with the manufacturer's detail and specification","m2",837,null,{"$f":"+G846*H846","v":{"v":0,"d":"0.00"}}]
[]
[3,7,81,null,"NAILED UP CEILINGS","H2",0]
[]
[3,7,81,null,"9.5mm SABS approved gypsum plasterboard with taped & skimmed joints","H3",0]
[]
[3,7,81,2,"Ceilings including 38 x 38mm sawn softwood brandering at 500mm centres in one direction.","m2",837,null,{"$f":"+G852*H852","v":{"v":0,"d":"0.00"}}]
[]
[3,7,81,3,"Extra  over  ceiling  for  850  x  850mm trap door","No",10,null,{"$f":"+G854*H854","v":{"v":0,"d":"0.00"}}]
[]
[3,7,81,null,"Gypsum Plasterboard Cornice","H3",0]
[]
[3,7,81,4,"75mm Coved cornice","m",515,null,{"$f":"+G858*H858","v":{"v":0,"d":"0.00"}}]
[]
[3,7,{"$nulls":4},0,null,{"$f":"SUM(I845:I859)","v":{"v":0,"d":"0.00"}}]
[]
[3,8,83,null,"BILL NO. 8  IRONMONGERY","H1",0]
[]
[3,8,83,null,"MODEL PREAMBLES","H2",0]
[]
[3,8,83,null,"The tenderer is referred to the \"Model Preambles for Trades 2008\" for supplementary and comprehensive expansion of descriptions, appropriate provision for which shall be deemed to have been included in all relevant rates",null,0]
[]
[3,8,83,null,"(CPAP WORK GROUP NO. 132 UNLESS OTHERWISE STATED)","H2",0]
[]
[3,8,83,null,"HINGES, BOLTS, ETC","H2",0]
[]
[3,8,83,null,"SABS approved","H3",0]
[]
[3,8,83,1,"150mm Stainless steel cabin hook ","No",20,null,{"$f":"+G874*H874","v":{"v":0,"d":"0.00"}}]
[]
[3,8,83,null,"LOCKS","H2",0]
[]
[3,8,83,null,"SABS approved","H3",0]
[]
[3,8,83,2,"Three lever mortice lockset and furniture to external door","No",23,null,{"$f":"+G880*H880","v":{"v":0,"d":"0.00"}}]
[]
[3,8,84,null,"HANDLES","H2",0]
[]
[3,8,84,null,"SABS approved","H3",0]
[]
[3,8,84,3,"Approved Set of two 111mm pull handles fixed back to back ","No",23,null,{"$f":"+G886*H886","v":{"v":0,"d":"0.00"}}]
[]
[3,8,84,null,"WINDOW FITTINGS","H2",0]
[]
[3,8,84,null,"SABS approved","H3",0]
[]
[3,8,84,4,"Approved Brass plated sliding stay to existing steel window ","No",17,null,{"$f":"+G892*H892","v":{"v":0,"d":"0.00"}}]
[]
[3,8,84,5,"Approved Brass plated sash fastner to existing steel window ","No",6,null,{"$f":"+G894*H894","v":{"v":0,"d":"0.00"}}]
[]
[3,8,84,6,"Approved Brass plated casement stay to existing steel window ","No",9,null,{"$f":"+G896*H896","v":{"v":0,"d":"0.00"}}]
[]
[3,8,84,7,"Brass plated window handle to existing steel window ","No",23,null,{"$f":"+G898*H898","v":{"v":0,"d":"0.00"}}]
[]
[3,8,84,null,"SUNDRIES","H2",0]
[]
[3,8,85,null,"SABS approved","H3",0]
[]
[3,8,85,8,"38mm Diameter rubber floor/wall mounted door stop ","No",23,null,{"$f":"+G904*H904","v":{"v":0,"d":"0.00"}}]
[]
[3,8,85,null,"PINNING BOARDS, WRITING BOARDS, PROJECTION SCREENS, ETC","H2",0]
[]
[3,8,85,9,"2400 x 1200mm High, wall mounted aluminium framed pinning board. ","No",12,null,{"$f":"+G908*H908","v":{"v":0,"d":"0.00"}}]
[]
[3,8,85,10,"2420 x 1220mm fixed projection white board (non reflective) aluminium framed, magnetic surface (centre board) complete with (x2) 1210 x 1220mm swing leaf aluminium framed magnetic chalk boards (without any lines or graphics, etc) with heavy duty hinges and 2250mm one complete aluminium pen tray to the centre board.","No",9,null,{"$f":"+G910*H910","v":{"v":0,"d":"0.00"}}]
[]
[3,8,85,11,"Magnetic Starter Pack (x1 Full Complete Set) consisting of:  4 x White board markers (Red, Green, Black, Blue) 1 x Cleaning Cloth 1 x Magnetic Eraser 1 x Cleaning Fluid 250ml 4 x Moulded magnets d day","No",9,null,{"$f":"+G912*H912","v":{"v":0,"d":"0.00"}}]
[]
[3,8,85,null,"PUSH PLATES AND KICKING PLATES","H2",0]
[]
[3,8,86,null,"\"Solid\"","H3",0]
[]
[3,8,86,12,"800mm x 200mm high x 2mm aluminium screw mounted kick plate. ","No",48,null,{"$f":"+G918*H918","v":{"v":0,"d":"0.00"}}]
[]
[3,8,{"$nulls":4},0,null,{"$f":"SUM(I873:I919)","v":{"v":0,"d":"0.00"}}]
[]
[3,9,88,null,"BILL NO. 9  METALWORK","H1",0]
[]
[3,9,88,null,"MODEL PREAMBLES","H2",0]
[]
[3,9,88,null,"The tenderer is referred to the \"Model Preambles for Trades 2008\" for supplementary and comprehensive expansion of descriptions, appropriate provision for which shall be deemed to have been included in all relevant rates",null,0]
[]
[3,9,88,null,"(CPAP WORK GROUP NO. 136 UNLESS OTHERWISE STATED)","H2",0]
[]
[3,9,88,null,"GALVANIZED STEEL WINDOWS, DOORS, ETC","H2",0]
[]
[3,9,88,null,"Residential Type Windows","H3",0]
[]
[3,9,88,1,"D2H Window 1 022 x 1 245mm high to match existing with and including factory fitted burglar bars","No",41,null,{"$f":"+G934*H934","v":{"v":0,"d":"0.00"}}]
[]
[3,9,88,2,"D11H Window 2 000 x 1 245mm high to match existing with and including factory fitted burglar bars","No",2,null,{"$f":"+G936*H936","v":{"v":0,"d":"0.00"}}]
[]
[3,9,88,null,"GALVANIZED PRESSED STEEL DOOR FRAMES","H2",0]
[]
[3,9,89,null,"1,6mm galvanised mild steel standard pressed jamb lining with double rebates to suit one brick wall:","H3",0]
[]
[3,9,89,3,"Frame for door 813 x 2032mm high.","No",22,null,{"$f":"+G942*H942","v":{"v":0,"d":"0.00"}}]
[]
[3,9,89,4,"Frame for door 1613 x 2032mm high.","No",1,null,{"$f":"+G944*H944","v":{"v":0,"d":"0.00"}}]
[]
[3,9,89,null,"GALVANISED MILD STEEL GATES","H2",0]
[]
[3,9,89,null,"Gate constructed from hot-dipped galvanized mild steel, consisting of 40 x 30 x 2mm thick rectangular hollow section to outer frame and horizontal rails. Infill to be 8 No. continuous 10mm diameter galvanised mild steel rods passing through and welded to horizontal rails and welded to outer frame. Lock housing to be formed of (2 Off) 10 x 180 x 3mm galvanised mild steel plates welded to finish flush with each face of the gate and is to have the necessary cut-outs for the lock deadbolt and cylinder.Frame stile to hinge side to be 30 x 30 x 2mm thick galvanised mild steel hollow square section 2m long, bolted to wall with (4 Off) expansion bolts. 30 x 30 x 2mm thick galvanised mild steel hollow square section 260mm long, twice bolted to wall as lock keep. End caps to be provided to both the frame stile and the lock keep.1,5 pairs galvanised mild steel pintle hinges welded to gate and frame stile. Pin of top hinge to be inverted. (1 Off)  Cylinder Gate Lock with  housing and 2 x  double cylinder. (1 Off)  cabin hook and eye with cabin hook screwed to 100 x 70 x 32mm Meranti block plugged and screwed to wall, and eye welded to leading edge of gate outer frame Gate is to be cleaned down on completion and left unpainted","H3",0]
[]
[3,9,89,5,"Single gate size 1 000 x 2 000mm complete fixed to blockwork","No",17,null,{"$f":"+G950*H950","v":{"v":0,"d":"0.00"}}]
[]
[3,9,90,null,"GALVANIZED STEEL BURGLAR BARS","H2",0]
[]
[3,9,90,null,"4,7mm x 19mm galvanised mild steel burglar bars welded to window frame over both opening and fixed sections of window horizontally","H3",0]
[]
[3,9,90,6,"Bars at 150mm centres to suit window 1,0 x 1,25m high ","m",80,null,{"$f":"+G956*H956","v":{"v":0,"d":"0.00"}}]
[]
[3,9,90,7,"Bars at 150mm centres to suit window 2 x 1,25m high ","m",20,null,{"$f":"+G958*H958","v":{"v":0,"d":"0.00"}}]
[]
[3,9,90,null,"ROLLER SHUTTER DOORS","H2",0]
[]
[3,9,90,null,"Steel roller shutter doors:","H3",0]
[]
[3,9,90,null,"Note: The contractor is to check on site measurements before placing of order.","H4",0]
[]
[3,9,90,8,"Push-up hot dip galvanised steel roller shutter door to suit opening size 2,500 x 1,115mm high, with overhead box, with 0.8mm thick slats, 75mm wide side guides and two barrel bolts including extruded aluminium T-bar formed of 40 x 40mm angle iron, with rubber seal.","No",1,null,{"$f":"+G966*H966","v":{"v":0,"d":"0.00"}}]
[]
[3,9,90,null,"GALVANISED MILD STEEL POSTS, ETC","H2",0]
[]
[3,9,90,null,"Posts","H3",0]
[]
[3,9,90,9,"75 x 75 x 3 x 3600mm High posts including base plates and slotted to suite beam","No",36,null,{"$f":"+G972*H972","v":{"v":0,"d":"0.00"}}]
[]
[3,9,91,null,"Sundries:","H3",0]
[]
[3,9,91,10,"10 x 180mm Mild steel bolts and nuts","No",144,null,{"$f":"+G976*H976","v":{"v":0,"d":"0.00"}}]
[]
[3,9,91,null,"PROVISIONAL SUMS","H2",0]
[]
[3,9,91,11,"Provide an amount of R120,000.00 (One Hundred and Twenty Thousand Rand) for the supply and install of one (1) smart interactive board (screen) to be installed in the team teaching or general multi-purpose classroom or standard classroom. ","Item",1,null,{"v":120000,"d":"120,000.00"}]
[]
[3,9,91,12,"Allow for profit and general attendance","%",1,null,{"$f":"+I980*H982","v":{"v":0,"d":"0.00"}}]
[]
[3,9,91,13,"Provide an amount of R10,000.00 (Ten Thousand Rand) for training to be given on the functioning of the smart interactive screen.","Item",1,null,{"v":10000,"d":"10,000.00"}]
[]
[3,9,91,14,"Allow for profit and general attendance","%",1,null,{"$f":"+I984*H986","v":{"v":0,"d":"0.00"}}]
[]
[3,9,{"$nulls":4},0,null,{"$f":"SUM(I933:I987)","v":{"v":130000,"d":"130,000.00"}}]
[]
[3,10,93,null,"BILL NO. 10  PLASTERING","H1",0]
[]
[3,10,93,null,"MODEL PREAMBLES","H2",0]
[]
[3,10,93,null,"The tenderer is referred to the \"Model Preambles for Trades 2008\" for supplementary and comprehensive expansion of descriptions, appropriate provision for which shall be deemed to have been included in all relevant rates",null,0]
[]
[3,10,93,null,"(CPAP WORK GROUP NO. 142 UNLESS OTHERWISE STATED)","H2",0]
[]
[3,10,93,null,"GRANOLITHIC","H2",0]
[]
[3,10,93,null,"Granolithic screeds on concrete","H3",0]
[]
[3,10,93,null,"Chip loose material away untill a dense uniform surface of concrete is obtained. Feathered edges shall be saw cut to form surfaces perpendicular to the concrete (minimum 20mm). All loose material and dust to be removed by water. The cavity shall then be filled with a non-shrink cementitious grout","H3",0]
[]
[3,10,93,1,"30mm Screed on floors in patches","m2",65,null,{"$f":"+G1004*H1004","v":{"v":0,"d":"0.00"}}]
[]
[3,10,94,null,"Prepare and apply bonding liquid prior to laying granolithic finish composed of one part cement, two and a half parts concrete sand and three and a half parts granite or other approved hard stone chippings including filling in holes","H3",0]
[]
[3,10,94,2,"30mm Screed on previously screeded floors","m2",424,null,{"$f":"+G1008*H1008","v":{"v":0,"d":"0.00"}}]
[]
[3,10,94,null,"INTERNAL PLASTER","H2",0]
[]
[3,10,94,null,"Cement plaster trowelled smooth on brickwork ","H3",0]
[]
[3,10,94,3,"On walls in small areas","m2",176,null,{"$f":"+G1014*H1014","v":{"v":0,"d":"0.00"}}]
[]
[3,10,94,null,"EXTERNAL PLASTER","H2",0]
[]
[3,10,94,null,"Cement plaster trowelled smooth on brickwork ","H3",0]
[]
[3,10,94,4,"On walls in small areas","m2",70,null,{"$f":"+G1020*H1020","v":{"v":0,"d":"0.00"}}]
[]
[3,10,{"$nulls":4},0,null,{"$f":"SUM(I1003:I1021)","v":{"v":0,"d":"0.00"}}]
[]
[3,11,96,null,"BILL NO. 11  PLUMBING AND DRAINAGE","H1",0]
[]
[3,11,96,null,"MODEL PREAMBLES","H2",0]
[]
[3,11,96,null,"The tenderer is referred to the \"Model Preambles for Trades 2008\" for supplementary and comprehensive expansion of descriptions, appropriate provision for which shall be deemed to have been included in all relevant rates",null,0]
[]
[3,11,96,null,"(CPAP WORK GROUP NO. 148 UNLESS OTHERWISE STATED)","H2",0]
[]
[3,11,96,null,"RAINWATER DISPOSAL","H2",0]
[]
[3,11,96,null,"Seamless aluminium","H3",0]
[]
[3,11,96,1,"150 x 150mm Box gutters with white baked enamel finish fixed with concealed brackets ","m",253,null,{"$f":"+G1036*H1036","v":{"v":0,"d":"0.00"}}]
[]
[3,11,96,2," 100 x 76mm Fluted aluminium downpipes with white baked enamel finish","m",80,null,{"$f":"+G1038*H1038","v":{"v":0,"d":"0.00"}}]
[]
[3,11,97,3,"Extra over eaves gutter for stopped end","No",16,null,{"$f":"+G1040*H1040","v":{"v":0,"d":"0.00"}}]
[]
[3,11,97,4,"Extra over eaves gutter for drop box suitable for 150 x 150mm box gutter","No",16,null,{"$f":"+G1042*H1042","v":{"v":0,"d":"0.00"}}]
[]
[3,11,97,5,"Extra over rainwater downpipe for bends","No",34,null,{"$f":"+G1044*H1044","v":{"v":0,"d":"0.00"}}]
[]
[3,11,97,6,"Extra over rainwater downpipe for shoes","No",2,null,{"$f":"+G1046*H1046","v":{"v":0,"d":"0.00"}}]
[]
[3,11,97,null,"SABS approved","H3",0]
[]
[3,11,97,7,"5 000 Litre Vertical polyethylene water storage tank complete, fitted with and including 20mm HD plastic bibtap with handle suitable for padlocking and setting in position on concrete tankstand (elsewhere measured) and tying down with 4mm diameter galvanised wire looped through 15mm hose enclosed steel link chain and secured to each corner of tank stand with a Y10 reinforceing rod twice bent and cast into concrete","No",8,null,{"$f":"+G1050*H1050","v":{"v":0,"d":"0.00"}}]
[]
[3,11,98,8,"2 500 Litre Vertical polyethylene water storage tank complete, fitted with and including 20mm plastic ball valve and 90 deg HDPE Spout suitable for padlocking and setting in position on concrete tank stand (elsewhere measured) and tying down with 4mm diameter galvanised wire looped through 15mm hose enclosed steel link chain and secured to each corner of tank stand with a Y10 reinforcing rod twice bent and cast into concrete ","No",3,null,{"$f":"+G1052*H1052","v":{"v":0,"d":"0.00"}}]
[]
[3,11,98,9,"Hole through top of tank lid for 75mm diameter rainwater pipe ","No",11,null,{"$f":"+G1054*H1054","v":{"v":0,"d":"0.00"}}]
[]
[3,11,98,null,"SANITARY PLUMBING","H2",0]
[]
[3,11,98,null,"uPVC pipes","H3",0]
[]
[3,11,98,10,"110mm Vent pipes ","m",14,null,{"$f":"+G1060*H1060","v":{"v":0,"d":"0.00"}}]
[]
[3,11,98,null,"Extra over uPVC pipes for fittings","H3",0]
[]
[3,11,98,11,"110mm Vent valve with and including shade cloth protection over opening","No",4,null,{"$f":"+G1064*H1064","v":{"v":0,"d":"0.00"}}]
[]
[3,11,98,null,"SANITARY FITTINGS","H2",0]
[]
[3,11,98,null,"SABS approved","H3",0]
[]
[3,11,98,12,"Approved seat to suit pedestal type pit latrine fitting","No",8,null,{"$f":"+G1070*H1070","v":{"v":0,"d":"0.00"}}]
[]
[3,11,99,13,"Grade 304 18/10 stainless steel wash hand basin (WB001) with galvanised bracket, fixed to brickwork ","No",8,null,{"$f":"+G1072*H1072","v":{"v":0,"d":"0.00"}}]
[]
[3,11,99,null,"TAPS, VALVES, ETC ","H2",0]
[]
[3,11,99,null,"SABS Approved","H3",0]
[]
[3,11,99,14,"15mm Slant tap complete with hose union","No",8,null,{"$f":"+G1078*H1078","v":{"v":0,"d":"0.00"}}]
[]
[3,11,99,15,"20mm ECCP hose bibtap with 20mm BSP hose union","No",8,null,{"$f":"+G1080*H1080","v":{"v":0,"d":"0.00"}}]
[]
[3,11,99,16,"15mm Pillartap","No",8,null,{"$f":"+G1082*H1082","v":{"v":0,"d":"0.00"}}]
[]
[3,11,99,null,"WATER SUPPLY","H3",0]
[]
[3,11,99,null,"Polypropylene pipes","H3",0]
[]
[3,11,99,null,"Polypropylene pipes with brass compression fittings ","H3",0]
[]
[3,11,99,17,"40mm Pipes laid in and including trenches 900mm deep","m",5,null,{"$f":"+G1090*H1090","v":{"v":0,"d":"0.00"}}]
[]
[3,11,99,null,"Extra over \"Polycop\" polypropylene pipes for brass compression fittings","H3",0]
[]
[3,11,99,18,"40mm Fittings","No",4,null,{"$f":"+G1094*H1094","v":{"v":0,"d":"0.00"}}]
[]
[3,11,100,19,"40mm Bend","No",4,null,{"$f":"+G1096*H1096","v":{"v":0,"d":"0.00"}}]
[]
[3,11,100,20,"40mm Bend","No",4,null,{"$f":"+G1098*H1098","v":{"v":0,"d":"0.00"}}]
[]
[3,11,100,21,"40mm Tee","No",4,null,{"$f":"+G1100*H1100","v":{"v":0,"d":"0.00"}}]
[]
[3,11,100,null,"Class 2 copper pipes:","H3",0]
[]
[3,11,100,22,"15mm Pipe chased into brick walls.","m",10,null,{"$f":"+G1104*H1104","v":{"v":0,"d":"0.00"}}]
[]
[3,11,100,23,"22mm Ditto.","m",10,null,{"$f":"+G1106*H1106","v":{"v":0,"d":"0.00"}}]
[]
[3,11,100,null,"Extra over class 2 copper pipes for capillary fittings:","H3",0]
[]
[3,11,100,24,"15mm Fittings.","No",4,null,{"$f":"+G1110*H1110","v":{"v":0,"d":"0.00"}}]
[]
[3,11,100,25,"22mm Fittings.","No",4,null,{"$f":"+G1112*H1112","v":{"v":0,"d":"0.00"}}]
[]
[3,11,{"$nulls":4},0,null,{"$f":"SUM(I1035:I1113)","v":{"v":0,"d":"0.00"}}]
[]
[3,12,102,null,"BILL NO. 12  GLAZING","H1",0]
[]
[3,12,102,null,"MODEL PREAMBLES","H2",0]
[]
[3,12,102,null,"The tenderer is referred to the \"Model Preambles for Trades 2008\" for supplementary and comprehensive expansion of descriptions, appropriate provision for which shall be deemed to have been included in all relevant rates",null,0]
[]
[3,12,102,null,"(CPAP WORK GROUP NO. 150 UNLESS OTHERWISE STATED)","H2",0]
[]
[3,12,102,null,"GLAZING TO STEEL WITH PUTTY","H2",0]
[]
[3,12,102,null,"6,38mm PVB laminated clear safety glass secured into galvanized window with a compatible UV resistant sealant","H3",0]
[]
[3,12,102,1,"Panes exceeding 0,1m2 and not exceeding 0,5m2","m2",63,null,{"$f":"+G1128*H1128","v":{"v":0,"d":"0.00"}}]
[]
[3,12,102,2,"Issue of Glazing Certificate.","Item",1,null,{"$f":"+G1130*H1130","v":{"v":0,"d":"0.00"}}]
[]
[3,12,{"$nulls":4},0,null,{"$f":"SUM(I1127:I1131)","v":{"v":0,"d":"0.00"}}]
[]
[3,13,103,null,"BILL NO. 13  PAINTWORK","H1",0]
[]
[3,13,103,null,"MODEL PREAMBLES","H2",0]
[]
[3,13,103,null,"The tenderer is referred to the \"Model Preambles for Trades 2008\" for supplementary and comprehensive expansion of descriptions, appropriate provision for which shall be deemed to have been included in all relevant rates",null,0]
[]
[3,13,103,null,"(CPAP WORK GROUP NO. 152 UNLESS OTHERWISE STATED)","H2",0]
[]
[3,13,103,null,"PAINTWORK TO PREVIOUSLY PAINTED WORK","H2",0]
[]
[3,13,103,null,"ON FLOATED PLASTER","H2",0]
[]
[3,13,103,null,"Prepare and brush surface to remove all loose contaminants and apply one coat gypsum and plaster primer and two coats approved emulsion paint for interior use","H3",0]
[]
[3,13,103,1,"On internal walls","m2",1532,null,{"$f":"+G1148*H1148","v":{"v":0,"d":"0.00"}}]
[]
[3,13,104,null,"Prepare and brush surface to remove all loose contaminants and apply one coat alkali resistant primer, and two coats approved emulsion paint for external use","H3",0]
[]
[3,13,104,2,"On external walls","m2",914,null,{"$f":"+G1152*H1152","v":{"v":0,"d":"0.00"}}]
[]
[3,13,104,null,"ON WOOD","H2",0]
[]
[3,13,104,null,"Prepare and brush surface to remove all loose contaminants and apply two coats approved carbolineum anti-corrosive coal tar paint","H3",0]
[]
[3,13,104,3,"On roof timbers at eaves and verges","m2",27,null,{"$f":"+G1158*H1158","v":{"v":0,"d":"0.00"}}]
[]
[3,13,104,null,"ON METAL","H2",0]
[]
[3,13,104,null,"Prepare and brush surface to remove all loose contaminants and apply one coat galvanized iron primer, one universal undercoat and two coats super enamel paint","H3",0]
[]
[3,13,104,4,"On window frames","m2",145,null,{"$f":"+G1164*H1164","v":{"v":0,"d":"0.00"}}]
[]
[3,13,104,null,"PAINTWORK TO NEW WORK","H2",0]
[]
[3,13,104,null,"ON FLOATED PLASTER","H2",0]
[]
[3,13,104,null,"Prepare and brush surface to remove all loose contaminants and apply one coat gypsum and plaster primer and two coats approved emulsion paint for interior use","H3",0]
[]
[3,13,104,5,"On internal walls","m2",176,null,{"$f":"+G1172*H1172","v":{"v":0,"d":"0.00"}}]
[]
[3,13,105,null,"Prepare and brush surface to remove all loose contaminants and apply one coat alkali resistant primer, one undercoat and two coats PVA emulsion paint for external use","H3",0]
[]
[3,13,105,6,"On external walls","m2",70,null,{"$f":"+G1176*H1176","v":{"v":0,"d":"0.00"}}]
[]
[3,13,105,null,"ON PLASTER BOARD","H2",0]
[]
[3,13,105,null,"Prepare, brush surface to remove all loose contaminants and apply one coat approved  alkali resistant primer, and two coats approved super acrylic PVA Colour: White","H3",0]
[]
[3,13,105,7,"On ceilings and cornices","m2",878,null,{"$f":"+G1182*H1182","v":{"v":0,"d":"0.00"}}]
[]
[3,13,105,null,"ON FIBRE CEMENT","H2",0]
[]
[3,13,105,null,"Prepare and brush surface to remove loose contaminants and apply one coat professional gypsum & plaster primer, and two coats approved emulsion paint","H3",0]
[]
[3,13,105,8,"On fascias & barge boards","m2",103,null,{"$f":"+G1188*H1188","v":{"v":0,"d":"0.00"}}]
[]
[3,13,105,null,"ON WOOD","H2",0]
[]
[3,13,105,null,"Prepare and brush surface to remove all loose contaminants and apply two coats approved carbolineum anti-corrosive coal tar paint","H3",0]
[]
[3,13,105,9,"On roof timbers at eaves and verges","m2",217,null,{"$f":"+G1194*H1194","v":{"v":0,"d":"0.00"}}]
[]
[3,13,106,null,"Prepare, brush surface to remove all loose contaminants, stain and apply one coat and three coats approved preservative strictly in accordance with the Manufacturer's instructions","H3",0]
[]
[3,13,106,10,"On doors","m2",60,null,{"$f":"+G1198*H1198","v":{"v":0,"d":"0.00"}}]
[]
[3,13,106,null,"ON METAL","H2",0]
[]
[3,13,106,null,"Prepare and brush surface to remove all loose contaminants and apply one coat galvanized iron primer, one universal undercoat and two coats super enamel paint","H3",0]
[]
[3,13,106,11,"On window frames","m2",115,null,{"$f":"+G1204*H1204","v":{"v":0,"d":"0.00"}}]
[]
[3,13,106,12,"On door frames","m2",24,null,{"$f":"+G1206*H1206","v":{"v":0,"d":"0.00"}}]
[]
[3,13,{"$nulls":4},0,null,{"$f":"SUM(I1147:I1207)","v":{"v":0,"d":"0.00"}}]
[]
[{"$nulls":4},"SECTION SUMMARY"]
[]
[3,14,108,1,"Earthworks","Page 59",null,null,{"$f":"+I558","v":{"v":0,"d":"0.00"}}]
[]
[3,14,108,2,"Concrete, Formwork and Reinforcement","Page 63",null,null,{"$f":"+I626","v":{"v":0,"d":"0.00"}}]
[]
[3,14,108,3,"Masonry","Page 66",null,null,{"$f":"+I660","v":{"v":0,"d":"0.00"}}]
[]
[3,14,108,4,"Waterproofing","Page 67",null,null,{"$f":"+I686","v":{"v":0,"d":"0.00"}}]
[]
[3,14,108,5,"Roof Coverings","Page 74",null,null,{"$f":"+I766","v":{"v":0,"d":"0.00"}}]
[]
[3,14,108,6,"Carpentry & Joinery","Page 79",null,null,{"$f":"+I820","v":{"v":0,"d":"0.00"}}]
[]
[3,14,108,7,"Ceilings & Partitions","Page 82",null,null,{"$f":"+I860","v":{"v":0,"d":"0.00"}}]
[]
[3,14,108,8,"Ironmongery","Page 87",null,null,{"$f":"+I920","v":{"v":0,"d":"0.00"}}]
[]
[3,14,108,9,"Metalwork","Page 92",null,null,{"$f":"+I988","v":{"v":130000,"d":"130,000.00"}}]
[]
[3,14,108,10,"Plastering","Page 95",null,null,{"$f":"+I1022","v":{"v":0,"d":"0.00"}}]
[]
[3,14,108,11,"Plumbing & Drainage","Page 101",null,null,{"$f":"+I1114","v":{"v":0,"d":"0.00"}}]
[]
[3,14,108,12,"Glazing","Page 102",null,null,{"$f":"+I1132","v":{"v":0,"d":"0.00"}}]
[]
[3,14,108,13,"Paintwork","Page 107",null,null,{"$f":"+I1208","v":{"v":0,"d":"0.00"}}]
[]
[{"$nulls":4},"SECTION SUMMARY SUB-TOTAL",{"$nulls":3},{"$f":"SUM(I1211:I1237)","v":{"v":130000,"d":"130,000.00"}}]
[]
[]
[4,1,109,null,"SITEWORKS  BILL NO. 1  EARTHWORKS","H1",0]
[]
[4,1,109,null,"(CPAP WORK GROUP NO. 104 UNLESS OTHERWISE STATED)","H2",0]
[]
[4,1,109,null,"EXCAVATION, FILLING, ETC OTHER THAN BULK","H2",0]
[]
[4,1,109,null,"Earth berm","H3",0]
[]
[4,1,109,1,"Create earth berm for stormwater control with in situ material 1,5m wide at base x 500mm high","m",30,null,{"$f":"+G1249*H1249","v":{"v":0,"d":"0.00"}}]
[]
[4,1,109,null,"Headwall","H3",0]
[]
[4,1,109,2,"Construct headwall outlet (comprising of 630 x 200 x 4300mm long reinforced ref. 245 concrete footing with 1000mm high 230mm brick-wall including all form-work, excavation, filling, ramming, soil poisoning) for storm water from above v-drain elsewhere measured, as per drawing.","No",2,null,{"$f":"+G1253*H1253","v":{"v":0,"d":"0.00"}}]
[]
[4,1,109,null,"Soak Away","H3",0]
[]
[4,1,109,3,"Excavate for and create 15sqm of 300mm thick gabion/reno mattress (as per drawing)","No",2,null,{"$f":"+G1257*H1257","v":{"v":0,"d":"0.00"}}]
[]
[4,1,{"$nulls":4},0,null,{"$f":"SUM(I1248:I1258)","v":{"v":0,"d":"0.00"}}]
[]
[4,2,110,null,"SITEWORKS  BILL NO. 2  V DRAINS & APRONS","H1",0]
[]
[4,2,110,null,"REMOVAL OF EXISTING WORK","H2",0]
[]
[4,2,110,null,"(CPAP WORK GROUP NO. 102 UNLESS OTHERWISE STATED)","H2",0]
[]
[4,2,110,null,"Break up and Remove","H3",0]
[]
[4,2,110,1,"100mm Thick surface bed in walkways","m2",144,null,{"$f":"+G1269*H1269","v":{"v":0,"d":"0.00"}}]
[]
[4,2,110,null,"SURFACE DRAINAGE","H2",0]
[]
[4,2,110,null,"(CPAP WORK GROUP TO BE AS PER RELEVANT TRADES)","H2",0]
[]
[4,2,110,null,"Precast or in-situ Ref 193 mesh reinforced concrete (25MPa) open stormwater channels having V-shaped waterway formed in top, finished smooth on all exposed surfaces in 3:1 cement plaster trowelled smooth and with angles rounded, cast in suitable lengths not exceeding 3m, including all formwork, moulds, shallow excavation, filling and ramming, laying to falls, bedding and pointing in 3:1 cement mortar","H3",0]
[]
[4,2,110,2,"V- shaped concrete channel 600mm wide and 100mm thick concrete lining with wood finish on exposed surfaces laid to falls in panels not exceeding 1.80m long, with 12mm softboard movement joints including all excavations, formwork, cart away as per drawing","m",277,null,{"$f":"+G1277*H1277","v":{"v":0,"d":"0.00"}}]
[]
[4,2,111,3,"V- shaped concrete channel 1000mm wide and 100mm thick concrete lining with wood finish on exposed surfaces laid to falls in panels not exceeding 1.80m long, with 12mm softboard movement joints including all excavations, formwork, cart away as per drawing ","m",82,null,{"$f":"+G1279*H1279","v":{"v":0,"d":"0.00"}}]
[]
[4,2,111,4,"Extra for 600mm angle","No",20,null,{"$f":"+G1281*H1281","v":{"v":0,"d":"0.00"}}]
[]
[4,2,111,5,"Extra for 600mm T-intersection","No",8,null,{"$f":"+G1283*H1283","v":{"v":0,"d":"0.00"}}]
[]
[4,2,111,6,"Extra for forming 150mm thick 600mm wide spreader fanning out to 2 600mm width at furthest end with cement grouted stone pitching cast in ass diffusers including working off concrete to a smooth finish","No",6,null,{"$f":"+G1285*H1285","v":{"v":0,"d":"0.00"}}]
[]
[4,2,111,7,"Extra for forming 150mm thick 1000mm wide spreader fanning out to 2 600mm width at furthest end with cement grouted stone pitching cast in ass diffusers including working off concrete to a smooth finish","No",3,null,{"$f":"+G1287*H1287","v":{"v":0,"d":"0.00"}}]
[]
[4,2,111,8,"10mm Thick polystyrene joint forming material in expansion joint between concrete and concrete surfaces in narrow widths not exceeding 300mm high","m",406,null,{"$f":"+G1289*H1289","v":{"v":0,"d":"0.00"}}]
[]
[4,2,111,9,"Rake out 10mm wide expansion joint material for a depth of 10mm and point with UV and chemical resistant polysulphide sealant","m",406,null,{"$f":"+G1291*H1291","v":{"v":0,"d":"0.00"}}]
[]
[4,2,111,null,"SOIL POISONING","H2",0]
[]
[4,2,111,null,"Soil insecticide inclusive of a written guarantee","H3",0]
[]
[4,2,111,10,"Under floors etc including forming and poisoning shallow furrows against foundation walls etc, filling in furrows and ramming. ","m2",248,null,{"$f":"+G1297*H1297","v":{"v":0,"d":"0.00"}}]
[]
[4,2,111,null,"CONCRETE APRONS AND CLASS VERANDAH WALKWAYS","H2",0]
[]
[4,2,112,null,"EARTHWORKS","H2",0]
[]
[4,2,112,null,"(CPAP WORK GROUP NO. 104 UNLESS OTHERWISE STATED)","H2",0]
[]
[4,2,112,null,"EXCAVATION OTHER THAN BULK","H2",0]
[]
[4,2,112,null,"Excavation in earth not exceeding 2m deep:","H3",0]
[]
[4,2,112,11,"Reduced levels under floors.","m3",43,null,{"$f":"+G1309*H1309","v":{"v":0,"d":"0.00"}}]
[]
[4,2,112,12,"Trenches.","m3",6,null,{"$f":"+G1311*H1311","v":{"v":0,"d":"0.00"}}]
[]
[4,2,112,null,"Extra over all excavations for carting away:","H3",0]
[]
[4,2,112,13,"Surplus material from excavations and/or stock piles on site to a dumping site to be located by the contractor.","m3",22,null,{"$f":"+G1315*H1315","v":{"v":0,"d":"0.00"}}]
[]
[4,2,112,null,"EARTH FILLING, ETC.","H2",0]
[]
[4,2,112,null,"Coarse river sand filling supplied by the contractor:","H3",0]
[]
[4,2,112,14,"Under floors etc. (Provisional).","m3",7,null,{"$f":"+G1321*H1321","v":{"v":0,"d":"0.00"}}]
[]
[4,2,112,null,"Selected earth filling obtained from the excavations and/or prescribed stock piles on site of a minimum G7 grade and compacted to 95% Mod AASHTO density","H3",0]
[]
[4,2,112,15,"Under floors, steps, pavings, etc","m3",22,null,{"$f":"+G1325*H1325","v":{"v":0,"d":"0.00"}}]
[]
[4,2,112,null,"Compaction of surfaces","H3",0]
[]
[4,2,112,16,"Compaction of ground surface under pavings etc including scarifying for a depth of 150mm, breaking down oversize material, adding suitable material where necessary and compacting to 98% Mod AASHTO density","m2",176,null,{"$f":"+G1329*H1329","v":{"v":0,"d":"0.00"}}]
[]
[4,2,112,null,"SOIL POISONING","H2",0]
[]
[4,2,113,null,"Soil insecticide inclusive of a written guarantee","H3",0]
[]
[4,2,113,17,"Under floors etc including forming and poisoning shallow furrows against foundation walls etc, filling in furrows and ramming. ","m2",176,null,{"$f":"+G1335*H1335","v":{"v":0,"d":"0.00"}}]
[]
[4,2,113,null,"REINFORCED CONCRETE","H2",0]
[]
[4,2,113,null,"(CPAP WORK GROUP NO. 110 UNLESS OTHERWISE STATED)","H2",0]
[]
[4,2,113,null,"25MPa/19mm Concrete","H3",0]
[]
[4,2,113,18,"Surface beds cast in panels in walkways","m3",22,null,{"$f":"+G1343*H1343","v":{"v":0,"d":"0.00"}}]
[]
[4,2,113,19,"Strip Footings","m3",6,null,{"$f":"+G1345*H1345","v":{"v":0,"d":"0.00"}}]
[]
[4,2,113,null,"CONCRETE SUNDRIES","H2",0]
[]
[4,2,113,null,"Finishing top surfaces of concrete with a woodfloat finish","H3",0]
[]
[4,2,113,20,"Surface beds, slabs, etc","m2",160,null,{"$f":"+G1351*H1351","v":{"v":0,"d":"0.00"}}]
[]
[4,2,113,null,"TEST BLOCKS","H2",0]
[]
[4,2,113,21,"Prepare a set of six concrete cubes each cube size 150 x 150 x 150mm for strength cubes and deliver to an approved laboratory for testing and pay all charges in connection therewith","No",1,null,{"$f":"+G1355*H1355","v":{"v":0,"d":"0.00"}}]
[]
[4,2,113,null,"ROUGH FORMWORK (DEGREE OF ACCURACY II)","H2",0]
[]
[4,2,113,null,"(CPAP WORK GROUP NO. 111 UNLESS OTHERWISE STATED)","H2",0]
[]
[4,2,114,null,"Rough formwork to sides","H3",0]
[]
[4,2,114,22,"Edges, risers, ends and reveals not exceeding 300mm high or wide","m",102,null,{"$f":"+G1363*H1363","v":{"v":0,"d":"0.00"}}]
[]
[4,2,114,null,"MOVEMENT JOINTS ETC","H2",0]
[]
[4,2,114,null,"Expansion joints with approved softboard between vertical concrete surfaces","H3",0]
[]
[4,2,114,23,"10mm Joints not exceeding 300mm high","m",94,null,{"$f":"+G1369*H1369","v":{"v":0,"d":"0.00"}}]
[]
[4,2,114,null,"STEEL REINFORCEMENT (PROVISIONAL)","H2",0]
[]
[4,2,114,null,"(CPAP WORK GROUP NO. 114 UNLESS OTHERWISE STATED)","H2",0]
[]
[4,2,114,null,"Mesh reinforcement","H3",0]
[]
[4,2,114,24,"Steel mesh reinforcement reference No. 193 in concrete slabs, etc. including all laps, bending, cutting, etc.  (Measured net).","m2",144,null,{"$f":"+G1377*H1377","v":{"v":0,"d":"0.00"}}]
[]
[4,2,114,null,"BLOCKWORK","H2",0]
[]
[4,2,114,null,"3,5MPa Cement blocks in class II mortar","H3",0]
[]
[4,2,114,25,"M140 block walls ","m2",16,null,{"$f":"+G1383*H1383","v":{"v":0,"d":"0.00"}}]
[]
[4,2,114,null,"BRICKWORK SUNDRIES","H2",0]
[]
[4,2,114,null,"Galvanized brickwork reinforcement","H3",0]
[]
[4,2,114,26,"75mm Wide reinforcement built in horizontally","m",53,null,{"$f":"+G1389*H1389","v":{"v":0,"d":"0.00"}}]
[]
[4,2,114,null,"WATERPROOFING","H2",0]
[]
[4,2,114,null,"(CPAP WORK GROUP NO. 120 UNLESS OTHERWISE STATED)","H2",0]
[]
[4,2,115,null,"DAMP-PROOFING OF WALLS AND FLOORS","H2",0]
[]
[4,2,115,null,"One layer of 250 micron USB Green waterproof sheeting sealed at laps with Pressure Sensitive Tape","H3",0]
[]
[4,2,115,27,"Under surface beds","m2",144,null,{"$f":"+G1399*H1399","v":{"v":0,"d":"0.00"}}]
[]
[4,2,115,null,"JOINT SEALANTS ETC","H2",0]
[]
[4,2,115,null,"SANS approved two-part grey polysulphide sealing compound (UV and chemical resistent) including backing chord, bond breaker, primer, etc","H3",0]
[]
[4,2,115,28,"10 x 10mm In expansion joints between brickwork & concrete including raking out expansion joint filler as necessary.","m",96,null,{"$f":"+G1405*H1405","v":{"v":0,"d":"0.00"}}]
[]
[4,2,115,null,"PLASTERING","H2",0]
[]
[4,2,115,null,"SCREEDS","H2",0]
[]
[4,2,115,null,"1:5 Cement plaster screeds wood floated on concrete","H3",0]
[]
[4,2,115,29,"Average 25mm thick on floors to falls","m2",160,null,{"$f":"+G1413*H1413","v":{"v":0,"d":"0.00"}}]
[]
[4,2,115,null,"EXTERNAL PLASTER ","H2",0]
[]
[4,2,115,null,"Cement plaster on brickwork:","H3",0]
[]
[4,2,115,30,"On walls.","m2",16,null,{"$f":"+G1419*H1419","v":{"v":0,"d":"0.00"}}]
[]
[4,2,115,null,"PAINTWORK TO NEW WORK","H2",0]
[]
[4,2,115,null,"ON PLASTERED SURFACES","H2",0]
[]
[4,2,116,null,"Prepare and brush surface to remove all loose contaminants and apply one coat alkali resistant primer, and two coats approved washable emulsion paint for external use","H3",0]
[]
[4,2,116,31,"On external walls","m2",16,null,{"$f":"+G1427*H1427","v":{"v":0,"d":"0.00"}}]
[]
[4,2,{"$nulls":4},0,null,{"$f":"SUM(I1268:I1428)","v":{"v":0,"d":"0.00"}}]
[]
[4,3,118,null,"SITEWORKS  BILL NO. 3  TANK STANDS","H1",0]
[]
[4,3,118,null,"EXCAVATION, FILLING, ETC OTHER THAN BULK","H2",0]
[]
[4,3,118,null,"Excavation in earth not exceeding 2m deep","H3",0]
[]
[4,3,118,1,"Trenches","m3",38,null,{"$f":"+G1437*H1437","v":{"v":0,"d":"0.00"}}]
[]
[4,3,118,null,"Risk of collapse of excavations","H3",0]
[]
[4,3,118,2,"Sides of excavations not exceeding 1,5m deep","m2",115,null,{"$f":"+G1441*H1441","v":{"v":0,"d":"0.00"}}]
[]
[4,3,118,null,"Keeping excavations free of water","H3",0]
[]
[4,3,118,3,"Keeping excavations free of all water other than subterranean water","Item",1,null,{"$f":"+G1445*H1445","v":{"v":0,"d":"0.00"}}]
[]
[4,3,118,null,"Earth filling obtained from the excavations and/or prescribed stock piles on site compacted to 97% Mod AASHTO density","H3",0]
[]
[4,3,118,4,"Backfilling to trenches, holes","m3",18,null,{"$f":"+G1449*H1449","v":{"v":0,"d":"0.00"}}]
[]
[4,3,118,null,"Selected earth filling obtained from the excavations and/or prescribed stock piles on site of a minimum G7 grade and compacted to 95% Mod AASHTO density","H3",0]
[]
[4,3,118,5,"Under floors, steps, pavings, etc","m3",6,null,{"$f":"+G1453*H1453","v":{"v":0,"d":"0.00"}}]
[]
[4,3,119,null,"Compaction of surfaces","H3",0]
[]
[4,3,119,6,"Compaction of ground surface under pavings etc including scarifying for a depth of 150mm, breaking down oversize material, adding suitable material where necessary and compacting to 98% Mod AASHTO density","m2",93,null,{"$f":"+G1457*H1457","v":{"v":0,"d":"0.00"}}]
[]
[4,3,119,null,"SOIL POISONING","H2",0]
[]
[4,3,119,null,"Soil insecticide inclusive of a written guarantee","H3",0]
[]
[4,3,119,7,"Under floors etc including forming and poisoning shallow furrows against foundation walls etc, filling in furrows and ramming","m2",210,null,{"$f":"+G1463*H1463","v":{"v":0,"d":"0.00"}}]
[]
[4,3,119,null,"CONCRETE, FORMWORK AND REINFORCEMENT","H2",0]
[]
[4,3,119,null,"UNREINFORCED CONCRETE CAST AGAINST EXCAVATED SURFACES","H2",0]
[]
[4,3,119,null,"25MPa/19mm Concrete","H3",0]
[]
[4,3,119,8,"Strip footings","m3",13,null,{"$f":"+G1471*H1471","v":{"v":0,"d":"0.00"}}]
[]
[4,3,119,null,"REINFORCED CONCRETE","H2",0]
[]
[4,3,119,null,"25MPa/19mm Concrete","H3",0]
[]
[4,3,119,9,"Surface beds cast in panels","m3",6,null,{"$f":"+G1477*H1477","v":{"v":0,"d":"0.00"}}]
[]
[4,3,119,null,"CONCRETE SUNDRIES","H2",0]
[]
[4,3,119,null,"Finishing top surfaces of concrete with a woodfloat finish","H3",0]
[]
[4,3,119,10,"Surface beds, slabs, etc","m2",43,null,{"$f":"+G1483*H1483","v":{"v":0,"d":"0.00"}}]
[]
[4,3,120,null,"TEST BLOCKS","H2",0]
[]
[4,3,120,11,"Prepare a set of six concrete cubes each cube size 150 x 150 x 150mm for strength cubes and deliver to an approved laboratory for testing and pay all charges in connection therewith","No",3,null,{"$f":"+G1487*H1487","v":{"v":0,"d":"0.00"}}]
[]
[4,3,120,null,"DAMPPROOFING OF WALLS AND FLOORS ","H2",0]
[]
[4,3,120,null,"One layer of 250 micron 'USB GREEN' waterproof sheeting sealed at laps with 'Gunplas Pressure Sensitive Tape':","H3",0]
[]
[4,3,120,12,"Under surface beds.","m2",43,null,{"$f":"+G1493*H1493","v":{"v":0,"d":"0.00"}}]
[]
[4,3,120,null,"STEEL REINFORCEMENT (PROVISIONAL)","H2",0]
[]
[4,3,120,null,"Mesh reinforcement","H3",0]
[]
[4,3,120,13,"Steel mesh reinforcement reference No. 193 in concrete slabs, etc. including all laps, bending, cutting, etc.  (Measured net).","m2",93,null,{"$f":"+G1499*H1499","v":{"v":0,"d":"0.00"}}]
[]
[4,3,120,null,"BRICKWORK","H2",0]
[]
[4,3,120,null,"Brickwork of NFX bricks (14 MPa nominal compressive strength) in Class I mortar:","H3",0]
[]
[4,3,120,14,"One brick walls in foundations.","m2",45,null,{"$f":"+G1505*H1505","v":{"v":0,"d":"0.00"}}]
[]
[4,3,120,null,"Brickwork of NFP bricks (14 MPa nominal compressive strength) in Class II mortar:","H3",0]
[]
[4,3,120,15,"One brick walls in superstructure.","m2",40,null,{"$f":"+G1509*H1509","v":{"v":0,"d":"0.00"}}]
[]
[4,3,120,null,"Bagging and sealing the outer face of the inner skin of walls with 1:3 cement and sand mixture and seal with two coats \"Brixeal\" bitumen emulsion waterproofing coating:","H3",0]
[]
[4,3,120,16,"To walls (Provisional).","m2",85,null,{"$f":"+G1513*H1513","v":{"v":0,"d":"0.00"}}]
[]
[4,3,121,null,"BRICKWORK SUNDRIES","H2",0]
[]
[4,3,121,null,"Brickwork reinforcement:","H3",0]
[]
[4,3,121,17,"150mm Wide reinforcement built in horizontally.","m",385,null,{"$f":"+G1519*H1519","v":{"v":0,"d":"0.00"}}]
[]
[4,3,121,null,"FACE BRICKWORK","H2",0]
[]
[4,3,121,null,"Approved face bricks in stretcher bond with ruled joints and perpends externally:","H3",0]
[]
[4,3,121,18,"Extra over brickwork for face brickwork externally.","m2",40,null,{"$f":"+G1525*H1525","v":{"v":0,"d":"0.00"}}]
[]
[4,3,121,null,"Brick-on-edge header course copings, sills, etc, of approved face bricks pointed with recessed joints on all exposed faces, 220mm wide sill set sloping and slightly projecting:","H3",0]
[]
[4,3,121,19,"230mm Wide header course to top of one brick wall bedded and jointed in cement mortar and pointed on top and both sides as described.","m",77,null,{"$f":"+G1529*H1529","v":{"v":0,"d":"0.00"}}]
[]
[4,3,121,null,"METALWORK","H2",0]
[]
[4,3,121,null,"Sundry items","H3",0]
[]
[4,3,121,20,"30mm Approved brass padlock","No",11,null,{"$f":"+G1535*H1535","v":{"v":0,"d":"0.00"}}]
[]
[4,3,121,21,"400mm Long x 50mm wide x 3mm thick hot dipped galvanized three times holed steel plate twice bolted to concrete with and including 8mm masonry anchors","No",11,null,{"$f":"+G1537*H1537","v":{"v":0,"d":"0.00"}}]
[]
[4,3,121,null,"PLUMBING AND DRAINAGE","H2",0]
[]
[4,3,121,null,"Polycop","H3",0]
[]
[4,3,121,22,"15mm Pipe fixed to wall with and including proprietary brackets","m",14,null,{"$f":"+G1543*H1543","v":{"v":0,"d":"0.00"}}]
[]
[4,3,121,23,"Extra on polycop piping for 15mm fittings","No",18,null,{"$f":"+G1545*H1545","v":{"v":0,"d":"0.00"}}]
[]
[4,3,122,null,"PAINTWORK TO NEW WORK","H2",0]
[]
[4,3,122,null,"ON BRICK SURFACES","H2",0]
[]
[4,3,122,null,"Clean down with spirits of salts solution and apply two coats silicone-based brick dressing on: ","H3",0]
[]
[4,3,122,24,"On facings (Externally).","m2",40,null,{"$f":"+G1553*H1553","v":{"v":0,"d":"0.00"}}]
[]
[4,3,{"$nulls":4},0,null,{"$f":"SUM(I1436:I1554)","v":{"v":0,"d":"0.00"}}]
[]
[4,4,124,null,"SITEWORKS  BILL NO. 4  RETAINING WALLS","H1",0]
[]
[4,4,124,null,"INTERLOCKING PLANTER UNITS","H2",0]
[]
[4,4,124,null,"(CPAP WORK GROUP NO. 118 UNLESS OTHERWISE STATED)","H2",0]
[]
[4,4,124,null,"SANS approved precast concrete interlocking planter unit with nominal compressive strength of 10,5Mpa and a nominal self weight of 32kg per block, finished smooth on exposed surfaces","H3",0]
[]
[4,4,124,1,"Retaining walls with stepped face and curves as required to suit slopes of 325 x 390 x 180mm high block and slider interlocking units laid with horizontal bed joints to min 20 degree slope and average 400mm wide backfilling with pervious granular sand/stone drainage layer, approved geofabric layer and backfill of excavated material compacted in 150mm layers to 95% Mod AASHTO density and filling the units with material lightly compacted as the work proceeds","m2",74,null,{"$f":"+G1565*H1565","v":{"v":0,"d":"0.00"}}]
[]
[4,4,124,2,"Extra over retaining walls for filling in blocks of first three courses and top two courses solid with 25MPa/19mm concrete infill and including excavations, risk of collapse, 25MPa/19mm concrete in footings, on compacted in -situ material to 95% Mod AASHTO density, etc for concrete footing 800 x 250mm high with 200 x 150mm downstand","m",49,null,{"$f":"+G1567*H1567","v":{"v":0,"d":"0.00"}}]
[]
[4,4,124,3,"110mm Diameter perforated uPVC pipe with 300 x 300mm 20mm stone surrounded wrapped in geofabric material","m",49,null,{"$f":"+G1569*H1569","v":{"v":0,"d":"0.00"}}]
[]
[4,4,124,4,"Y10 high tensile steel reinforcement","kg",245,null,{"$f":"+G1571*H1571","v":{"v":0,"d":"0.00"}}]
[]
[4,4,{"$nulls":4},0,null,{"$f":"SUM(I1564:I1572)","v":{"v":0,"d":"0.00"}}]
[]
[{"$nulls":4},"SECTION SUMMARY"]
[]
[4,5,125,1,"Earthworks","Page",109,null,{"$f":"+I1259","v":{"v":0,"d":"0.00"}}]
[]
[4,5,125,2,"V Drains & Aprons","Page",117,null,{"$f":"+I1429","v":{"v":0,"d":"0.00"}}]
[]
[4,5,125,3,"Tank Stand","Page",123,null,{"$f":"+I1555","v":{"v":0,"d":"0.00"}}]
[]
[4,5,125,4,"Retaining Walls","Page",124,null,{"$f":"+I1573","v":{"v":0,"d":"0.00"}}]
[]
[{"$nulls":4},"SECTION SUMMARY SUB-TOTAL",{"$nulls":3},{"$f":"SUM(I1577:I1584)","v":{"v":0,"d":"0.00"}}]
[]
[5,1,126,null,"Section No. 5","H1",0]
[]
[5,1,126,null,"BILL No.1 Electrical Installation","H1",0]
[]
[5,1,126,null,"(CPAP WORK GROUP NO. 160 UNLESS OTHERWISE STATED)","H1",0]
[]
[5,1,126,null,"Tenderers are to note that the sum included in the amount column for this Section of the Bills of Quantities, should be the total of all priced items in the Electrical Installation, Bill of Quantities as attached.",null,0]
[]
[5,1,126,null,"Note: Tenderers are to include for all Preliminary and General costs of the electrical contractor, in the rates.",null,0]
[]
[5,1,126,null,"REPAIRS AND RENOVATIONS TO EXISTING BUILDINGS","H1",0]
[]
[5,1,126,null,"The contractor is to Remove and replace existing Lighting fixtures, DB's and other outlets that are affected or non-compliant in terms of SANS codes. Rates to include removing and re-fixing existing fixtures to new positions where applicable. All installations to be made safe in terms of SANS 10142-1. ",null,0]
[]
[5,1,126,null,"CONDUIT AND CONDUIT BOXES",null,0]
[]
[5,1,126,null,"Remove & replace PVC conduit in walls, floors or ceiling spaces as specified for lighting, small power and other auxiliary outlets, including couplings, bushes, bending, drawboxes and fixing, etc in accordance with non-metallic conduit and accessories as per SANS 950",null,0]
[]
[5,1,126,null,"P8000 Galvnised Trunking C/W enclosure",null,0]
[]
[5,1,126,1,"Supply","m",150,null,{"$f":"+G1607*H1607","v":{"v":0,"d":"0.00"}}]
[]
[5,1,126,2,"Install","m",150,null,{"$f":"+G1609*H1609","v":{"v":0,"d":"0.00"}}]
[]
[5,1,126,null,"20mm PVC conduit ",null,0]
[]
[5,1,127,3,"Supply","m",150,null,{"$f":"+G1613*H1613","v":{"v":0,"d":"0.00"}}]
[]
[5,1,127,4,"Install ","m",150,null,{"$f":"+G1615*H1615","v":{"v":0,"d":"0.00"}}]
[]
[5,1,127,null,"20mm Bozal conduit ",null,0]
[]
[5,1,127,5,"Supply","m",30,null,{"$f":"+G1619*H1619","v":{"v":0,"d":"0.00"}}]
[]
[5,1,127,6,"Install ","m",30,null,{"$f":"+G1621*H1621","v":{"v":0,"d":"0.00"}}]
[]
[5,1,127,null,"20mm PVC round boxes complete with lids & mounting screws",null,0]
[]
[5,1,127,7,"Supply","No",30,null,{"$f":"+G1625*H1625","v":{"v":0,"d":"0.00"}}]
[]
[5,1,127,8,"Install ","No",30,null,{"$f":"+G1627*H1627","v":{"v":0,"d":"0.00"}}]
[]
[5,1,127,null,"100 x 100 x 50 mm deep mounted on surface for isolators / SSO units",null,0]
[]
[5,1,127,9,"Supply","No",15,null,{"$f":"+G1631*H1631","v":{"v":0,"d":"0.00"}}]
[]
[5,1,127,10,"Install ","No",15,null,{"$f":"+G1633*H1633","v":{"v":0,"d":"0.00"}}]
[]
[5,1,127,null,"CIRCUIT WIRING",null,0]
[]
[5,1,127,null,"Supply and install copper PVC insulated conductors in conduit or trunking system in walls, floors or in roof space for lights, plugs and power points, including connection to switches and equipment. ",null,0]
[]
[5,1,127,null,"1,5 mm²  (Live, Neutral and Earth)",null,0]
[]
[5,1,127,11,"Supply","m",2700,null,{"$f":"+G1641*H1641","v":{"v":0,"d":"0.00"}}]
[]
[5,1,127,12,"Install ","m",2700,null,{"$f":"+G1643*H1643","v":{"v":0,"d":"0.00"}}]
[]
[5,1,127,null,"2,5 mm²  (Live, Neutral and Earth)",null,0]
[]
[5,1,127,13,"Supply","m",2700,null,{"$f":"+G1647*H1647","v":{"v":0,"d":"0.00"}}]
[]
[5,1,128,14,"Install ","m",2700,null,{"$f":"+G1649*H1649","v":{"v":0,"d":"0.00"}}]
[]
[5,1,128,null,"4,0 mm² (Live, Neutral and Earth)",null,0]
[]
[5,1,128,15,"Supply","m",1500,null,{"$f":"+G1653*H1653","v":{"v":0,"d":"0.00"}}]
[]
[5,1,128,16,"Install ","m",1500,null,{"$f":"+G1655*H1655","v":{"v":0,"d":"0.00"}}]
[]
[5,1,128,null,"LIGHTING EQUIPMENT",null,0]
[]
[5,1,128,null,"Remove existing light fitting & replace with existing or with new lighting fixtures. Located in ceilings and / or walls. ",null,0]
[]
[5,1,128,null,"Supply & Install New Light Fittings",null,0]
[]
[5,1,128,null,"Type A",null,0]
[]
[5,1,128,null,"1500mm (5ft) Surface mounted,  open channel fluorescent luminaire. Metal Body. 2 x T5 fluorescent lamps complete with electronic control gear and telescopic ends. Minimum 8750 Lumens. 2 x 35W Cool White. Colour white or as per architect.",null,0]
[]
[5,1,128,17,"Supply","No",72,null,{"$f":"+G1667*H1667","v":{"v":0,"d":"0.00"}}]
[]
[5,1,128,18,"Install","No",72,null,{"$f":"+G1669*H1669","v":{"v":0,"d":"0.00"}}]
[]
[5,1,128,null,"Type B",null,0]
[]
[5,1,128,null,"Wall mounted  die-cast aluminium body with glass diffuser. IP 65, Corrosion and vandal resistant luminaire, complete with 2 x CFL lamp, electronic control gear and all necessary accessories. All external bolts to be stainless steel. Minimum 2400 lm.2 x 11W Cool White. Colour black or as per architect.",null,0]
[]
[5,1,128,19,"Supply","No",26,null,{"$f":"+G1675*H1675","v":{"v":0,"d":"0.00"}}]
[]
[5,1,128,20,"Install ","No",26,null,{"$f":"+G1677*H1677","v":{"v":0,"d":"0.00"}}]
[]
[5,1,129,null,"Type C",null,0]
[]
[5,1,129,null,"Ceiling/Wall mounted  high pressure die-cast aluminium base with opal high-impact acrylic diffuser. Minimum IP 65, Corrosion and vandal resistant luminaire complete with 2x CFL lamps, electronic control gear and all necessary accessories. All external bolts to be stainless steel. Minimum 2400lm.2 x 11W Cool White. Colour black or as per architect.",null,0]
[]
[5,1,129,21,"Supply","No",24,null,{"$f":"+G1683*H1683","v":{"v":0,"d":"0.00"}}]
[]
[5,1,129,22,"Install ","No",24,null,{"$f":"+G1685*H1685","v":{"v":0,"d":"0.00"}}]
[]
[5,1,129,null,"Re-lamp existing lights with lamps as noted below:",null,0]
[]
[5,1,129,null,"230V, 11W ES/BC Compact Fluorescent lamps. Colour Cool White",null,0]
[]
[5,1,129,23,"Supply","No",34,null,{"$f":"+G1691*H1691","v":{"v":0,"d":"0.00"}}]
[]
[5,1,129,24,"Install ","No",34,null,{"$f":"+G1693*H1693","v":{"v":0,"d":"0.00"}}]
[]
[5,1,129,null,"230V, 1500mm T5 Fluorescent Tubes. Colour Cool White",null,0]
[]
[5,1,129,25,"Supply","No",34,null,{"$f":"+G1697*H1697","v":{"v":0,"d":"0.00"}}]
[]
[5,1,129,26,"Install ","No",34,null,{"$f":"+G1699*H1699","v":{"v":0,"d":"0.00"}}]
[]
[5,1,129,null,"MISCELLANEOUS",null,0]
[]
[5,1,129,null,"Administration Block Alarm System including connection cables.",null,0]
[]
[5,1,129,27,"Supply","No",1,null,{"$f":"+G1705*H1705","v":{"v":0,"d":"0.00"}}]
[]
[5,1,129,28,"Install","No",1,null,{"$f":"+G1707*H1707","v":{"v":0,"d":"0.00"}}]
[]
[5,1,129,null,"Telephone Distribution Board",null,0]
[]
[5,1,130,29,"Supply","No",1,null,{"$f":"+G1711*H1711","v":{"v":0,"d":"0.00"}}]
[]
[5,1,130,30,"Install","No",1,null,{"$f":"+G1713*H1713","v":{"v":0,"d":"0.00"}}]
[]
[5,1,130,null,"School Siren and Push Button with Latch in Timer",null,0]
[]
[5,1,130,31,"Supply","No",1,null,{"$f":"+G1717*H1717","v":{"v":0,"d":"0.00"}}]
[]
[5,1,130,32,"Install","No",1,null,{"$f":"+G1719*H1719","v":{"v":0,"d":"0.00"}}]
[]
[5,1,130,null,"50mm PVC Sleeve",null,0]
[]
[5,1,130,33,"Supply","m",10,null,{"$f":"+G1723*H1723","v":{"v":0,"d":"0.00"}}]
[]
[5,1,130,34,"Install","m",10,null,{"$f":"+G1725*H1725","v":{"v":0,"d":"0.00"}}]
[]
[5,1,130,null,"DISTRIBUTION BOARDS",null,0]
[]
[5,1,130,null,"Remove and replace distribution boards, complete with doors where applicable, frames, subframes, chassis, fixtures, fittings, spare space, busbar etc. as per specification and drawings. All shop drawings to be approved prior to manufacture. Refer to Schematic for full details and circuit breaker count.",null,0]
[]
[5,1,130,null,"3 x 20 Way Surface - 3Phase",null,0]
[]
[5,1,130,35,"Supply","No",1,null,{"$f":"+G1733*H1733","v":{"v":0,"d":"0.00"}}]
[]
[5,1,130,36,"Install ","No",1,null,{"$f":"+G1735*H1735","v":{"v":0,"d":"0.00"}}]
[]
[5,1,130,null,"12 Way Surface",null,0]
[]
[5,1,130,37,"Supply","No",4,null,{"$f":"+G1739*H1739","v":{"v":0,"d":"0.00"}}]
[]
[5,1,130,38,"Install ","No",4,null,{"$f":"+G1741*H1741","v":{"v":0,"d":"0.00"}}]
[]
[5,1,130,39,"Solar panel 5kw system Supply and Install","No",1,null,{"v":200000,"d":"200,000.00"}]
[]
[5,1,130,40,"Allow for Municipal Eskom Meter","No",1,null,{"v":50000,"d":"50,000.00"}]
[]
[5,1,131,null,"Upgrade DB to bring up to SANS standard and Supply & Install circuit breakers as required. All circuit breakers to match DB kA rating with minimum  6kA Schneider/ CBI breakers. To include all wiring, labels, blanks and safety labels for DB.",null,0]
[]
[5,1,131,null,"15Amp single phase Circuit breaker",null,0]
[]
[5,1,131,41,"Supply","No",4,null,{"$f":"+G1751*H1751","v":{"v":0,"d":"0.00"}}]
[]
[5,1,131,42,"Install ","No",4,null,{"$f":"+G1753*H1753","v":{"v":0,"d":"0.00"}}]
[]
[5,1,131,null,"20Amp single phase Circuit breaker",null,0]
[]
[5,1,131,43,"Supply","No",4,null,{"$f":"+G1757*H1757","v":{"v":0,"d":"0.00"}}]
[]
[5,1,131,44,"Install ","No",4,null,{"$f":"+G1759*H1759","v":{"v":0,"d":"0.00"}}]
[]
[5,1,131,null,"60Amp double pole Earth Leakage Unit",null,0]
[]
[5,1,131,45,"Supply","No",1,null,{"$f":"+G1763*H1763","v":{"v":0,"d":"0.00"}}]
[]
[5,1,131,46,"Install ","No",1,null,{"$f":"+G1765*H1765","v":{"v":0,"d":"0.00"}}]
[]
[5,1,131,null,"Class II 10kA single pole SPD unit",null,0]
[]
[5,1,131,47,"Supply","No",2,null,{"$f":"+G1769*H1769","v":{"v":0,"d":"0.00"}}]
[]
[5,1,131,48,"Install ","No",2,null,{"$f":"+G1771*H1771","v":{"v":0,"d":"0.00"}}]
[]
[5,1,131,null,"60Amp three phase 4 pole Main Circuit breaker ",null,0]
[]
[5,1,131,49,"Supply","No",1,null,{"$f":"+G1775*H1775","v":{"v":0,"d":"0.00"}}]
[]
[5,1,131,50,"Install ","No",1,null,{"$f":"+G1777*H1777","v":{"v":0,"d":"0.00"}}]
[]
[5,1,131,null,"40Amp Double pole single phase Main Circuit breaker ",null,0]
[]
[5,1,131,51,"Supply","No",1,null,{"$f":"+G1781*H1781","v":{"v":0,"d":"0.00"}}]
[]
[5,1,132,52,"Install ","No",1,null,{"$f":"+G1783*H1783","v":{"v":0,"d":"0.00"}}]
[]
[5,1,132,null,"LIGHT SWITCHES ",null,0]
[]
[5,1,132,null,"Remove and replace, 16 Amp light switches including flush 50 x 100 x 50mm boxes, including white coloured cover plates.",null,0]
[]
[5,1,132,null,"Single Lever, one way switch",null,0]
[]
[5,1,132,53,"Supply","No",18,null,{"$f":"+G1791*H1791","v":{"v":0,"d":"0.00"}}]
[]
[5,1,132,54,"Install ","No",18,null,{"$f":"+G1793*H1793","v":{"v":0,"d":"0.00"}}]
[]
[5,1,132,null,"Two Lever one way switch",null,0]
[]
[5,1,132,55,"Supply","No",18,null,{"$f":"+G1797*H1797","v":{"v":0,"d":"0.00"}}]
[]
[5,1,132,56,"Install ","No",18,null,{"$f":"+G1799*H1799","v":{"v":0,"d":"0.00"}}]
[]
[5,1,132,null,"IP65 Single Lever Switch",null,0]
[]
[5,1,132,57,"Supply","No",2,null,{"$f":"+G1803*H1803","v":{"v":0,"d":"0.00"}}]
[]
[5,1,132,58,"Install","No",2,null,{"$f":"+G1805*H1805","v":{"v":0,"d":"0.00"}}]
[]
[5,1,132,null,"One Lever two way switch",null,0]
[]
[5,1,132,59,"Supply","No",12,null,{"$f":"+G1809*H1809","v":{"v":0,"d":"0.00"}}]
[]
[5,1,132,60,"Install ","No",12,null,{"$f":"+G1811*H1811","v":{"v":0,"d":"0.00"}}]
[]
[5,1,132,null,"SWITCHED SOCKET OUTLETS ",null,0]
[]
[5,1,132,null,"Remove and replace 16Amp switched socket outlets including 100 x 100 x 50mm boxes with white coloured cover plates ",null,0]
[]
[5,1,132,null,"16 Amp 3 pin double SSO (White)",null,0]
[]
[5,1,133,61,"Supply","No",24,null,{"$f":"+G1819*H1819","v":{"v":0,"d":"0.00"}}]
[]
[5,1,133,62,"Install ","No",24,null,{"$f":"+G1821*H1821","v":{"v":0,"d":"0.00"}}]
[]
[5,1,133,null,"16 Amp 3 pin Single (White)",null,0]
[]
[5,1,133,63,"Supply","No",24,null,{"$f":"+G1825*H1825","v":{"v":0,"d":"0.00"}}]
[]
[5,1,133,64,"Install ","No",24,null,{"$f":"+G1827*H1827","v":{"v":0,"d":"0.00"}}]
[]
[5,1,133,null,"ISOLATORS ",null,0]
[]
[5,1,133,null,"Remove and replace isolator in GRP extension box. To be supplied complete with 100 x 100 x 50mm box",null,0]
[]
[5,1,133,null,"30 Amp 2 pole 230V",null,0]
[]
[5,1,133,65,"Supply","No",6,null,{"$f":"+G1835*H1835","v":{"v":0,"d":"0.00"}}]
[]
[5,1,133,66,"Install","No",6,null,{"$f":"+G1837*H1837","v":{"v":0,"d":"0.00"}}]
[]
[5,1,133,null,"30 Amp 2 pole 230V, weather proof",null,0]
[]
[5,1,133,67,"Supply","No",6,null,{"$f":"+G1841*H1841","v":{"v":0,"d":"0.00"}}]
[]
[5,1,133,68,"Install","No",6,null,{"$f":"+G1843*H1843","v":{"v":0,"d":"0.00"}}]
[]
[5,1,133,null,"PHOTO CELLS ",null,0]
[]
[5,1,133,null,"Replace 10 Amp day light switch per SANS 1777",null,0]
[]
[5,1,133,69,"Supply","No",6,null,{"$f":"+G1849*H1849","v":{"v":0,"d":"0.00"}}]
[]
[5,1,133,70,"Install","No",6,null,{"$f":"+G1851*H1851","v":{"v":0,"d":"0.00"}}]
[]
[5,1,133,null,"EARTHING, BONDING AND LIGHTNING PROTECTION",null,0]
[]
[5,1,134,null,"Install Earthing & Lightning Protection per SANS 10313, 62305 and 10142. To be undertaken by specialist earthing and lightning contractor. Refer to specification Part A. Item 14",null,0]
[]
[5,1,134,null,"8mm Diameter  Aluminium  lightning protection conductor. To include all holding down clamps, down conductors and bonding to earth ring.",null,0]
[]
[5,1,134,71,"Supply","m",90,null,{"$f":"+G1859*H1859","v":{"v":0,"d":"0.00"}}]
[]
[5,1,134,72,"Install","m",90,null,{"$f":"+G1861*H1861","v":{"v":0,"d":"0.00"}}]
[]
[5,1,134,null,"Bond the metal roofs at each corner of the building bonded to the earth electrode in the ground. To include lugs, brass screws, nuts and washers",null,0]
[]
[5,1,134,73,"Supply","No",24,null,{"$f":"+G1865*H1865","v":{"v":0,"d":"0.00"}}]
[]
[5,1,134,74,"Install","No",24,null,{"$f":"+G1867*H1867","v":{"v":0,"d":"0.00"}}]
[]
[5,1,134,null,"Provide test joint points at 500mm AFGL at each down conductor location. The test joint shall comprise of two lugs and a 10mm galvanized steel bolt and nut enclosed in a suitable GRP enclosure.",null,0]
[]
[5,1,134,75,"Supply","No",24,null,{"$f":"+G1871*H1871","v":{"v":0,"d":"0.00"}}]
[]
[5,1,134,76,"Install","No",24,null,{"$f":"+G1873*H1873","v":{"v":0,"d":"0.00"}}]
[]
[5,1,134,null,"50mm stranded BCEW down conductor in surface mounted PVC conduit complete with saddles",null,0]
[]
[5,1,134,77,"Supply","m",90,null,{"$f":"+G1877*H1877","v":{"v":0,"d":"0.00"}}]
[]
[5,1,134,78,"Install","m",90,null,{"$f":"+G1879*H1879","v":{"v":0,"d":"0.00"}}]
[]
[5,1,135,null,"1200mm x 16mm diameter Copper earth electrodes driven in ground, including 'Cadweld' joining sleeves as required",null,0]
[]
[5,1,135,79,"Supply","No",24,null,{"$f":"+G1883*H1883","v":{"v":0,"d":"0.00"}}]
[]
[5,1,135,80,"Install","No",24,null,{"$f":"+G1885*H1885","v":{"v":0,"d":"0.00"}}]
[]
[5,1,135,null,"LOW VOLTAGE CABLES",null,0]
[]
[5,1,135,null,"Supply and installation and termination of copper PVC/SWA/ECC cables laid in ducts, trenches, horizontal racks or vertical ducts.  Rates shall include the supply and fixing of supports with regard to installation of cables. Rates shall include the PVC cable ties  as required. All cables are Copper PVC/SWA/ECC cables per SANS 1507.",null,0]
[]
[5,1,135,null,"6.0mm 3 Core  ECC",null,0]
[]
[5,1,135,81,"Supply","m",100,null,{"$f":"+G1893*H1893","v":{"v":0,"d":"0.00"}}]
[]
[5,1,135,82,"Install","m",100,null,{"$f":"+G1895*H1895","v":{"v":0,"d":"0.00"}}]
[]
[5,1,135,83,"Term","No",4,null,{"$f":"+G1897*H1897","v":{"v":0,"d":"0.00"}}]
[]
[5,1,135,null,"16.0mm 3 Core ECC",null,0]
[]
[5,1,135,84,"Supply","m",100,null,{"$f":"+G1901*H1901","v":{"v":0,"d":"0.00"}}]
[]
[5,1,135,85,"Install","m",100,null,{"$f":"+G1903*H1903","v":{"v":0,"d":"0.00"}}]
[]
[5,1,135,86,"Term","No",4,null,{"$f":"+G1905*H1905","v":{"v":0,"d":"0.00"}}]
[]
[5,1,135,null,"Trench Excavations including temporary support of sides, keeping excavation dry, bedding material, backfilling, compacting and testing as specified. All backfill material to be suitable as per SANS codes and engineers approval. Backfill material to be imported if necessary. Trench depth to be 500mm below finished ground level.",null,0]
[]
[5,1,136,87,"In soft or pickable soil (60%)","m3",45,null,{"$f":"+G1909*H1909","v":{"v":0,"d":"0.00"}}]
[]
[5,1,136,88,"Soft Rock (20%)","m3",15,null,{"$f":"+G1911*H1911","v":{"v":0,"d":"0.00"}}]
[]
[5,1,136,89,"Hard Rock (20%)","m3",15,null,{"$f":"+G1913*H1913","v":{"v":0,"d":"0.00"}}]
[]
[5,1,136,90,"Warning tape installed 300mm below ground level, above cables in trench","m",300,null,{"$f":"+G1915*H1915","v":{"v":0,"d":"0.00"}}]
[]
[5,1,136,null,"TESTING, COMMISSIONING & HANDOVER",null,0]
[]
[5,1,136,91,"Test and commission complete installation as per SANS 10142-1.","Item",3,null,{"$f":"+G1919*H1919","v":{"v":0,"d":"0.00"}}]
[]
[5,1,136,92,"Provide Certificate of Compliance (CoC) as per SANS 10142-1. One for each DB and one overall.","Item",3,null,{"$f":"+G1921*H1921","v":{"v":0,"d":"0.00"}}]
[]
[5,1,136,93,"Provide Earthing certificate for entire site, to include earth resistance test of each down conductor earth electrode, measured by an Earthing specialist by means of an approved instrument. ","Item",3,null,{"$f":"+G1923*H1923","v":{"v":0,"d":"0.00"}}]
[]
[5,1,136,94,"Remove all redundant equipment, store and dispose at an approved dump site. A disposal certificate to be supplied.","Item",3,null,{"$f":"+G1925*H1925","v":{"v":0,"d":"0.00"}}]
[]
[5,1,{"$nulls":6},{"$f":"SUM(I1606:I1926)","v":{"v":250000,"d":"250,000.00"}}]
[]
[{"$nulls":4},"FINAL SUMMARY"]
[]
[6,1,138,1,"Preliminaries","Page 46",null,null,{"$f":"+I372","v":{"v":0,"d":"0.00"}}]
[]
[6,1,138,2,"Alterations (Provisional)","Page 55",null,null,{"$f":"+I490","v":{"v":0,"d":"0.00"}}]
[]
[6,1,138,3,"New Works to Existing Structures (Provisional)","Page 108",null,null,{"$f":"+I1238","v":{"v":130000,"d":"130,000.00"}}]
[]
[6,1,138,4,"Siteworks (Provisional)","Page 125",null,null,{"$f":"+I1585","v":{"v":0,"d":"0.00"}}]
[]
[6,1,138,5,"Electrical Installation","Page 137",null,null,{"$f":"+I1927","v":{"v":250000,"d":"250,000.00"}}]
[]
[6,1,138,null,null,"Sub-Total",null,null,{"$f":"SUM(I1930:I1940)","v":{"v":380000,"d":"380,000.00"}}]
[]
[6,1,138,null,null,"VAT at 15%",null,null,{"$f":"I1941*15%","v":{"v":57000,"d":"57,000.00"}}]
[]
[{"$nulls":5},"Tender Amount",null,null,{"$f":"SUM(I1941:I1944)","v":{"v":437000,"d":"R437,000.00"}}]